{"text_format":"1","workbook":"xlsx","n_sheets":8,"sheets":["Die","10Rolls","100Rolls","1000Rolls","Instructions 2 dice","30 Rolls","100 Rolls","1000 Rolls"],"not_rendered":{"charts":8,"images":0,"macros":1,"external_links":0,"defined_names":7,"comments":0,"pivot_tables":0},"unopened":[],"bounds":{"document_bytes":16777216,"sheet_cells":100000,"rows_first":2000,"rows_last":500,"rows_between":2000,"halvings":0,"cell_chars":16384,"cell_head_chars":4096},"cells_cut":0,"cells_raw":0,"read":"whole","date_system":"1900"}

{"sheet":"Die","index":0,"n_rows":20,"n_cols":2943,"rows_kept":20,"cut":false,"hidden":false,"merged":[[10,0,10,3]]}
[null,null,null,null,null,null,null,null,null,null,null,null,null,null,null,null,null,null,null,null,null,null,null,null,null,null,null,null,null,null,null,null,null,null,null,null,null,null,null,null,null,null,null,null,null,null,null,null,null,null,null,null,null,null,null,null,null,null,null,null,null,null,null,null,null,null,null,null,null,null,null,null,null,null,null,null,null,null,null,null,null,null,null,null,null,null,null,null,null,null,null,null,null,null,null,null,null,null,null,null,null,null,null,null,null,null,null,null,null,null,null,null,null,null,null,null,null,null,null,null,null,null,null,null,null,null,null,null,null,null,null,null,null,null,null,null,null,null,null,null,null,null,null,null,null,null,null,null,null,null,null,null,null,null,null,null,null,null,null,null,null,null,null,null,null,null,null,null,null,null,null,null,null,null,null,null,null,null,null,null,null,null,null,null,null,null,null,null,null,null,null,null,null,null,null,null,null,null,null,null,null,null,null,null,null,null,null,null,null,null,null,null,null,null,null,null,null,null,null,null,null,null,null,null,null,null,null,null,null,null,null,null,null,null,null,null,null,null,null,null,null,null,null,null,null,null,null,null,null,null,null,null,null,null,null,null,null,null,null,null,null,null,null,null,null,null,null,null,null,null,null,null,null,null,null,null,null,null,null,null,null,null,null,null,null,null,null,null,null,null,null,null,null,null,null,null,null,null,null,null,null,null,null,null,null,null,null,null,null,null,null,null,null,null,null,null,null,null,null,null,null,null,null,null,null,null,null,null,null,null,null,null,null,null,null,null,null,null,null,null,null,null,null,null,null,null,null,null,null,null,null,null,null,null,null,null,null,null,null,null,null,null,null,null,null,null,null,null,null,null,null,null,null,null,null,null,null,null,null,null,null,null,null,null,null,null,null,null,null,null,null,null,null,null,null,null,null,null,null,null,null,null,null,null,null,null,null,null,null,null,null,null,null,null,null,null,null,null,null,null,null,null,null,null,null,null,null,null,null,null,null,null,null,null,null,null,null,null,null,null,null,null,null,null,null,null,null,null,null,null,null,null,null,null,null,null,null,null,null,null,null,null,null,null,null,null,null,null,null,null,null,null,null,null,null,null,null,null,null,null,null,null,null,null,null,null,null,null,null,null,null,null,null,null,null,null,null,null,null,null,null,null,null,null,null,null,null,null,null,null,null,null,null,null,null,null,null,null,null,null,null,null,null,null,null,null,null,null,null,null,null,null,null,null,null,null,null,null,null,null,null,null,null,null,null,null,null,null,null,null,null,null,null,null,null,null,null,null,null,null,null,null,null,null,null,null,null,null,null,null,null,null,null,null,null,null,null,null,null,null,null,null,null,null,null,null,null,null,null,null,null,null,null,null,null,null,null,null,null,null,null,null,null,null,null,null,null,null,null,null,null,null,null,null,null,null,null,null,null,null,null,null,null,null,null,null,null,null,null,null,null,null,null,null,null,null,null,null,null,null,null,null,null,null,null,null,null,null,null,null,null,null,null,null,null,null,null,null,null,null,null,null,null,null,null,null,null,null,null,null,null,null,null,null,null,null,null,null,null,null,null,null,null,null,null,null,null,null,null,null,null,null,null,null,null,null,null,null,null,null,null,null,null,null,null,null,null,null,null,null,null,null,null,null,null,null,null,null,null,null,null,null,null,null,null,null,null,null,null,null,null,null,null,null,null,null,null,null,null,null,null,null,null,null,null,null,null,null,null,null,null,null,null,null,null,null,null,null,null,null,null,null,null,null,null,null,null,null,null,null,null,null,null,null,null,null,null,null,null,null,null,null,null,null,null,null,null,null,null,null,null,null,null,null,null,null,null,null,null,null,null,null,null,null,null,null,null,null,null,null,null,null,null,null,null,null,null,null,null,null,null,null,null,null,null,null,null,null,null,null,null,null,null,null,null,null,null,null,null,null,null,null,null,null,null,null,null,null,null,null,null,null,null,null,null,null,null,null,null,null,null,null,null,null,null,null,null,null,null,null,null,null,null,null,null,null,null,null,null,null,null,null,null,null,null,null,null,null,null,null,null,null,null,null,null,null,null,null,null,null,null,null,null,null,null,null,null,null,null,null,null,null,null,null,null,null,null,null,null,null,null,null,null,null,null,null,null,null,null,null,null,null,null,null,null,null,null,null,null,null,null,null,null,null,null,null,null,null,null,null,null,null,null,null,null,null,null,null,null,null,null,null,null,null,null,null,null,null,null,null,null,null,null,null,null,null,null,null,null,null,null,null,null,null,null,null,null,null,null,null,null,null,null,null,null,null,null,null,null,null,null,null,null,null,null,null,null,null,null,null,null,null,null,null,null,null,null,null,null,null,null,null,null,null,null,null,null,null,null,null,null,null,null,null,null,null,null,null,null,null,null,null,null,null,null,null,null,null,null,null,null,null,null,null,null,null,null,null,null,null,null,null,null,null,null,null,null,null,null,null,null,null,null,null,null,null,null,null,null,null,null,null,null,null,null,null,null,null,null,null,null,null,null,null,null,null,null,null,null,null,null,null,null,null,null,null,null,null,null,null,null,null,null,null,null,null,null,null,null,null,null,null,null,null,null,null,null,null,null,null,null,null,null,null,null,null,null,null,null,null,null,null,null,null,null,null,null,null,null,null,null,null,null,null,null,null,null,null,null,null,null,null,null,null,null,null,null,null,null,null,null,null,null,null,null,null,null,null,null,null,null,null,null,null,null,null,null,null,null,null,null,null,null,null,null,null,null,null,null,null,null,null,null,null,null,null,null,null,null,null,null,null,null,null,null,null,null,null,null,null,null,null,null,null,null,null,null,null,null,null,null,null,null,null,null,null,null,null,null,null,null,null,null,null,null,null,null,null,null,null,null,null,null,null,null,null,null,null,null,null,null,null,null,null,null,null,null,null,null,null,null,null,null,null,null,null,null,null,null,null,null,null,null,null,null,null,null,null,null,null,null,null,null,null,null,null,null,null,null,null,null,null,null,null,null,null,null,null,null,null,null,null,null,null,null,null,null,null,null,null,null,null,null,null,null,null,null,null,null,null,null,null,null,null,null,null,null,null,null,null,null,null,null,null,null,null,null,null,null,null,null,null,null,null,null,null,null,null,null,null,null,null,null,null,null,null,null,null,null,null,null,null,null,null,null,null,null,null,null,null,null,null,null,null,null,null,null,null,null,null,null,null,null,null,null,null,null,null,null,null,null,null,null,null,null,null,null,null,null,null,null,null,null,null,null,null,null,null,null,null,null,null,null,null,null,null,null,null,null,null,null,null,null,null,null,null,null,null,null,null,null,null,null,null,null,null,null,null,null,null,null,null,null,null,null,null,null,null,null,null,null,null,null,null,null,null,null,null,null,null,null,null,null,null,null,null,null,null,null,null,null,null,null,null,null,null,null,null,null,null,null,null,null,null,null,null,null,null,null,null,null,null,null,null,null,null,null,null,null,null,null,null,null,null,null,null,null,null,null,null,null,null,null,null,null,null,null,null,null,null,null,null,null,null,null,null,null,null,null,null,null,null,null,null,null,null,null,null,null,null,null,null,null,null,null,null,null,null,null,null,null,null,null,null,null,null,null,null,null,null,null,null,null,null,null,null,null,null,null,null,null,null,null,null,null,null,null,null,null,null,null,null,null,null,null,null,null,null,null,null,null,null,null,null,null,null,null,null,null,null,null,null,null,null,null,null,null,null,null,null,null,null,null,null,null,null,null,null,null,null,null,null,null,null,null,null,null,null,null,null,null,null,null,null,null,null,null,null,null,null,null,null,null,null,null,null,null,null,null,null,null,null,null,null,null,null,null,null,null,null,null,null,null,null,null,null,null,null,null,null,null,null,null,null,null,null,null,null,null,null,null,null,null,null,null,null,null,null,null,null,null,null,null,null,null,null,null,null,null,null,null,null,null,null,null,null,null,null,null,null,null,null,null,null,null,null,null,null,null,null,null,null,null,null,null,null,null,null,null,null,null,null,null,null,null,null,null,null,null,null,null,null,null,null,null,null,null,null,null,null,null,null,null,null,null,null,null,null,null,null,null,null,null,null,null,null,null,null,null,null,null,null,null,null,null,null,null,null,null,null,null,null,null,null,null,null,null,null,null,null,null,null,null,null,null,null,null,null,null,null,null,null,null,null,null,null,null,null,null,null,null,null,null,null,null,null,null,null,null,null,null,null,null,null,null,null,null,null,null,null,null,null,null,null,null,null,null,null,null,null,null,null,null,null,null,null,null,null,null,null,null,null,null,null,null,null,null,null,null,null,null,null,null,null,null,null,null,null,null,null,null,null,null,null,null,null,null,null,null,null,null,null,null,null,null,null,null,null,null,null,null,null,null,null,null,null,null,null,null,null,null,null,null,null,null,null,null,null,null,null,null,null,null,null,null,null,null,null,null,null,null,null,null,null,null,null,null,null,null,null,null,null,null,null,null,null,null,null,null,null,null,null,null,null,null,null,null,null,null,null,null,null,null,null,null,null,null,null,null,null,null,null,null,null,null,null,null,null,null,null,null,null,null,null,null,null,null,null,null,null,null,null,null,null,null,null,null,null,null,null,null,null,null,null,null,null,null,null,null,null,null,null,null,null,null,null,null,null,null,null,null,null,null,null,null,null,null,null,null,null,null,null,null,null,null,null,null,null,null,null,null,null,null,null,null,null,null,null,null,null,null,null,null,null,null,null,null,null,null,null,null,null,null,null,null,null,null,null,null,null,null,null,null,null,null,null,null,null,null,null,null,null,null,null,null,null,null,null,null,null,null,null,null,null,null,null,null,null,null,null,null,null,null,null,null,null,null,null,null,null,null,null,null,null,null,null,null,null,null,null,null,null,null,null,null,null,null,null,null,null,null,null,null,null,null,null,null,null,null,null,null,null,null,null,null,null,null,null,null,null,null,null,null,null,null,null,null,null,null,null,null,null,null,null,null,null,null,null,null,null,null,null,null,null,null,null,null,null,null,null,null,null,null,null,null,null,null,null,null,null,null,null,null,null,null,null,null,null,null,null,null,null,null,null,null,null,null,null,null,null,null,null,null,null,null,null,null,null,null,null,null,null,null,null,null,null,null,null,null,null,null,null,null,null,null,null,null,null,null,null,null,null,null,null,null,null,null,null,null,null,null,null,null,null,null,null,null,null,null,null,null,null,null,null,null,null,null,null,null,null,null,null,null,null,null,null,null,null,null,null,null,null,null,null,null,null,null,null,null,null,null,null,null,null,null,null,null,null,null,null,null,null,null,null,null,null,null,null,null,null,null,null,null,null,null,null,null,null,null,null,null,null,null,null,null,null,null,null,null,null,null,null,null,null,null,null,null,null,null,null,null,null,null,null,null,null,null,null,null,null,null,null,null,null,null,null,null,null,null,null,null,null,null,null,null,null,null,null,null,null,null,null,null,null,null,null,null,null,null,null,null,null,null,null,null,null,null,null,null,null,null,null,null,null,null,null,null,null,null,null,null,null,null,null,null,null,null,null,null,null,null,null,null,null,null,null,null,null,null,null,null,null,null,null,null,null,null,null,null,null,null,null,null,null,null,null,null,null,null,null,null,null,null,null,null,null,null,null,null,null,null,null,null,null,null,null,null,null,null,null,null,null,null,null,null,null,null,null,null,null,null,null,null,null,null,null,null,null,null,null,null,null,null,null,null,null,null,null,null,null,null,null,null,null,null,null,null,null,null,null,null,null,null,null,null,null,null,null,null,null,null,null,null,null,null,null,null,null,null,null,null,null,null,null,null,null,null,null,null,null,null,null,null,null,null,null,null,null,null,null,null,null,null,null,null,null,null,null,null,null,null,null,null,null,null,null,null,null,null,null,null,null,null,null,null,null,null,null,null,null,null,null,null,null,null,null,null,null,null,null,null,null,null,null,null,null,null,null,null,null,null,null,null,null,null,null,null,null,null,null,null,null,null,null,null,null,null,null,null,null,null,null,null,null,null,null,null,null,null,null,null,null,null,null,null,null,null,null,null,null,null,null,null,null,null,null,null,null,null,null,null,null,null,null,null,null,null,null,null,null,null,null,null,null,null,null,null,null,null,null,null,null,null,null,null,null,null,null,null,null,null,null,null,null,null,null,null,null,null,null,null,null,null,null,null,null,null,null,null,null,null,null,null,null,null,null,null,null,null,null,null,null,null,null,null,null,null,null,null,null,null,null,null,null,null,null,null,null,null,null,null,null,null,null,null,null,null,null,null,null,null,null,null,null,null,null,null,null,null,null,null,null,null,null,null,null,null,null,null,null,null,null,null,null,null,null,null,null,null,null,null,null,null,null,null,null,null,null,null,null,null,null,null,null,null,null,null,null,null,null,null,null,null,null,null,null,null,null,null,null,null,null,null,null,null,null,null,null,null,null,null,null,null,null,null,null,null,null,null,null,null,null,null,null,null,null,null,null,null,null,null,null,null,null,null,null,null,null,null,null,null,null,null,null,null,null,null,null,null,null,null,null,null,null,null,null,null,null,null,null,null,null,null,null,null,null,null,null,null,null,null,null,null,null,null,null,null,null,null,null,null,null,null,null,null,null,null,null,null,null,null,null,null,null,null,null,null,null,null,null,null,null,null,null,null,null,null,null,null,null,null,null,null,null,null,null,null,null,null,null,null,null,null,null,null,null,null,null,null,null,null,null,null,null,null,null,null,null,null,null,null,null,null,null,null,null,null,null,null,null,null,null,3]
[null,null,null,null,null,null,null,null,null,null,null,null,null,null,null,null,null,null,null,null,null,null,null,null,null,null,null,null,null,null,null,null,null,null,null,null,null,null,null,null,null,null,null,null,null,null,null,null,null,null,null,null,null,null,null,null,null,null,null,null,null,null,null,null,null,null,null,null,null,null,null,null,null,null,null,null,null,null,null,null,null,null,null,null,null,null,null,null,null,null,null,null,null,null,null,null,null,null,null,null,null,null,null,null,null,null,null,null,null,null,null,null,null,null,null,null,null,null,null,null,null,null,null,null,null,null,null,null,null,null,null,null,null,null,null,null,null,null,null,null,null,null,null,null,null,null,null,null,null,null,null,null,null,null,null,null,null,null,null,null,null,null,null,null,null,null,null,null,null,null,null,null,null,null,null,null,null,null,null,null,null,null,null,null,null,null,null,null,null,null,null,null,null,null,null,null,null,null,null,null,null,null,null,null,null,null,null,null,null,null,null,null,null,null,null,null,null,null,null,null,null,null,null,null,null,null,null,null,null,null,null,null,null,null,null,null,null,null,null,null,null,null,null,null,null,null,null,null,null,null,null,null,null,null,null,null,null,null,null,null,null,null,null,null,null,null,null,null,null,null,null,null,null,null,null,null,null,null,null,null,null,null,null,null,null,null,null,null,null,null,null,null,null,null,null,null,null,null,null,null,null,null,null,null,null,null,null,null,null,null,null,null,null,null,null,null,null,null,null,null,null,null,null,null,null,null,null,null,null,null,null,null,null,null,null,null,null,null,null,null,null,null,null,null,null,null,null,null,null,null,null,null,null,null,null,null,null,null,null,null,null,null,null,null,null,null,null,null,null,null,null,null,null,null,null,null,null,null,null,null,null,null,null,null,null,null,null,null,null,null,null,null,null,null,null,null,null,null,null,null,null,null,null,null,null,null,null,null,null,null,null,null,null,null,null,null,null,null,null,null,null,null,null,null,null,null,null,null,null,null,null,null,null,null,null,null,null,null,null,null,null,null,null,null,null,null,null,null,null,null,null,null,null,null,null,null,null,null,null,null,null,null,null,null,null,null,null,null,null,null,null,null,null,null,null,null,null,null,null,null,null,null,null,null,null,null,null,null,null,null,null,null,null,null,null,null,null,null,null,null,null,null,null,null,null,null,null,null,null,null,null,null,null,null,null,null,null,null,null,null,null,null,null,null,null,null,null,null,null,null,null,null,null,null,null,null,null,null,null,null,null,null,null,null,null,null,null,null,null,null,null,null,null,null,null,null,null,null,null,null,null,null,null,null,null,null,null,null,null,null,null,null,null,null,null,null,null,null,null,null,null,null,null,null,null,null,null,null,null,null,null,null,null,null,null,null,null,null,null,null,null,null,null,null,null,null,null,null,null,null,null,null,null,null,null,null,null,null,null,null,null,null,null,null,null,null,null,null,null,null,null,null,null,null,null,null,null,null,null,null,null,null,null,null,null,null,null,null,null,null,null,null,null,null,null,null,null,null,null,null,null,null,null,null,null,null,null,null,null,null,null,null,null,null,null,null,null,null,null,null,null,null,null,null,null,null,null,null,null,null,null,null,null,null,null,null,null,null,null,null,null,null,null,null,null,null,null,null,null,null,null,null,null,null,null,null,null,null,null,null,null,null,null,null,null,null,null,null,null,null,null,null,null,null,null,null,null,null,null,null,null,null,null,null,null,null,null,null,null,null,null,null,null,null,null,null,null,null,null,null,null,null,null,null,null,null,null,null,null,null,null,null,null,null,null,null,null,null,null,null,null,null,null,null,null,null,null,null,null,null,null,null,null,null,null,null,null,null,null,null,null,null,null,null,null,null,null,null,null,null,null,null,null,null,null,null,null,null,null,null,null,null,null,null,null,null,null,null,null,null,null,null,null,null,null,null,null,null,null,null,null,null,null,null,null,null,null,null,null,null,null,null,null,null,null,null,null,null,null,null,null,null,null,null,null,null,null,null,null,null,null,null,null,null,null,null,null,null,null,null,null,null,null,null,null,null,null,null,null,null,null,null,null,null,null,null,null,null,null,null,null,null,null,null,null,null,null,null,null,null,null,null,null,null,null,null,null,null,null,null,null,null,null,null,null,null,null,null,null,null,null,null,null,null,null,null,null,null,null,null,null,null,null,null,null,null,null,null,null,null,null,null,null,null,null,null,null,null,null,null,null,null,null,null,null,null,null,null,null,null,null,null,null,null,null,null,null,null,null,null,null,null,null,null,null,null,null,null,null,null,null,null,null,null,null,null,null,null,null,null,null,null,null,null,null,null,null,null,null,null,null,null,null,null,null,null,null,null,null,null,null,null,null,null,null,null,null,null,null,null,null,null,null,null,null,null,null,null,null,null,null,null,null,null,null,null,null,null,null,null,null,null,null,null,null,null,null,null,null,null,null,null,null,null,null,null,null,null,null,null,null,null,null,null,null,null,null,null,null,null,null,null,null,null,null,null,null,null,null,null,null,null,null,null,null,null,null,null,null,null,null,null,null,null,null,null,null,null,null,null,null,null,null,null,null,null,null,null,null,null,null,null,null,null,null,null,null,null,null,null,null,null,null,null,null,null,null,null,null,null,null,null,null,null,null,null,null,null,null,null,null,null,null,null,null,null,null,null,null,null,null,null,null,null,null,null,null,null,null,null,null,null,null,null,null,null,null,null,null,null,null,null,null,null,null,null,null,null,null,null,null,null,null,null,null,null,null,null,null,null,null,null,null,null,null,null,null,null,null,null,null,null,null,null,null,null,null,null,null,null,null,null,null,null,null,null,null,null,null,null,null,null,null,null,null,null,null,null,null,null,null,null,null,null,null,null,null,null,null,null,null,null,null,null,null,null,null,null,null,null,null,null,null,null,null,null,null,null,null,null,null,null,null,null,null,null,null,null,null,null,null,null,null,null,null,null,null,null,null,null,null,null,null,null,null,null,null,null,null,null,null,null,null,null,null,null,null,null,null,null,null,null,null,null,null,null,null,null,null,null,null,null,null,null,null,null,null,null,null,null,null,null,null,null,null,null,null,null,null,null,null,null,null,null,null,null,null,null,null,null,null,null,null,null,null,null,null,null,null,null,null,null,null,null,null,null,null,null,null,null,null,null,null,null,null,null,null,null,null,null,null,null,null,null,null,null,null,null,null,null,null,null,null,null,null,null,null,null,null,null,null,null,null,null,null,null,null,null,null,null,null,null,null,null,null,null,null,null,null,null,null,null,null,null,null,null,null,null,null,null,null,null,null,null,null,null,null,null,null,null,null,null,null,null,null,null,null,null,null,null,null,null,null,null,null,null,null,null,null,null,null,null,null,null,null,null,null,null,null,null,null,null,null,null,null,null,null,null,null,null,null,null,null,null,null,null,null,null,null,null,null,null,null,null,null,null,null,null,null,null,null,null,null,null,null,null,null,null,null,null,null,null,null,null,null,null,null,null,null,null,null,null,null,null,null,null,null,null,null,null,null,null,null,null,null,null,null,null,null,null,null,null,null,null,null,null,null,null,null,null,null,null,null,null,null,null,null,null,null,null,null,null,null,null,null,null,null,null,null,null,null,null,null,null,null,null,null,null,null,null,null,null,null,null,null,null,null,null,null,null,null,null,null,null,null,null,null,null,null,null,null,null,null,null,null,null,null,null,null,null,null,null,null,null,null,null,null,null,null,null,null,null,null,null,null,null,null,null,null,null,null,null,null,null,null,null,null,null,null,null,null,null,null,null,null,null,null,null,null,null,null,null,null,null,null,null,null,null,null,null,null,null,null,null,null,null,null,null,null,null,null,null,null,null,null,null,null,null,null,null,null,null,null,null,null,null,null,null,null,null,null,null,null,null,null,null,null,null,null,null,null,null,null,null,null,null,null,null,null,null,null,null,null,null,null,null,null,null,null,null,null,null,null,null,null,null,null,null,null,null,null,null,null,null,null,null,null,null,null,null,null,null,null,null,null,null,null,null,null,null,null,null,null,null,null,null,null,null,null,null,null,null,null,null,null,null,null,null,null,null,null,null,null,null,null,null,null,null,null,null,null,null,null,null,null,null,null,null,null,null,null,null,null,null,null,null,null,null,null,null,null,null,null,null,null,null,null,null,null,null,null,null,null,null,null,null,null,null,null,null,null,null,null,null,null,null,null,null,null,null,null,null,null,null,null,null,null,null,null,null,null,null,null,null,null,null,null,null,null,null,null,null,null,null,null,null,null,null,null,null,null,null,null,null,null,null,null,null,null,null,null,null,null,null,null,null,null,null,null,null,null,null,null,null,null,null,null,null,null,null,null,null,null,null,null,null,null,null,null,null,null,null,null,null,null,null,null,null,null,null,null,null,null,null,null,null,null,null,null,null,null,null,null,null,null,null,null,null,null,null,null,null,null,null,null,null,null,null,null,null,null,null,null,null,null,null,null,null,null,null,null,null,null,null,null,null,null,null,null,null,null,null,null,null,null,null,null,null,null,null,null,null,null,null,null,null,null,null,null,null,null,null,null,null,null,null,null,null,null,null,null,null,null,null,null,null,null,null,null,null,null,null,null,null,null,null,null,null,null,null,null,null,null,null,null,null,null,null,null,null,null,null,null,null,null,null,null,null,null,null,null,null,null,null,null,null,null,null,null,null,null,null,null,null,null,null,null,null,null,null,null,null,null,null,null,null,null,null,null,null,null,null,null,null,null,null,null,null,null,null,null,null,null,null,null,null,null,null,null,null,null,null,null,null,null,null,null,null,null,null,null,null,null,null,null,null,null,null,null,null,null,null,null,null,null,null,null,null,null,null,null,null,null,null,null,null,null,null,null,null,null,null,null,null,null,null,null,null,null,null,null,null,null,null,null,null,null,null,null,null,null,null,null,null,null,null,null,null,null,null,null,null,null,null,null,null,null,null,null,null,null,null,null,null,null,null,null,null,null,null,null,null,null,null,null,null,null,null,null,null,null,null,null,null,null,null,null,null,null,null,null,null,null,null,null,null,null,null,null,null,null,null,null,null,null,null,null,null,null,null,null,null,null,null,null,null,null,null,null,null,null,null,null,null,null,null,null,null,null,null,null,null,null,null,null,null,null,null,null,null,null,null,null,null,null,null,null,null,null,null,null,null,null,null,null,null,null,null,null,null,null,null,null,null,null,null,null,null,null,null,null,null,null,null,null,null,null,null,null,null,null,null,null,null,null,null,null,null,null,null,null,null,null,null,null,null,null,null,null,null,null,null,null,null,null,null,null,null,null,null,null,null,null,null,null,null,null,null,null,null,null,null,null,null,null,null,null,null,null,null,null,null,null,null,null,null,null,null,null,null,null,null,null,null,null,null,null,null,null,null,null,null,null,null,null,null,null,null,null,null,null,null,null,null,null,null,null,null,null,null,null,null,null,null,null,null,null,null,null,null,null,null,null,null,null,null,null,null,null,null,null,null,null,null,null,null,null,null,null,null,null,null,null,null,null,null,null,null,null,null,null,null,null,null,null,null,null,null,null,null,null,null,null,null,null,null,null,null,null,null,null,null,null,null,null,null,null,null,null,null,null,null,null,null,null,null,null,null,null,null,null,null,null,null,null,null,null,null,null,null,null,null,null,null,null,null,null,null,null,null,null,null,null,null,null,null,null,null,null,null,null,null,null,null,null,null,null,null,null,null,null,null,null,null,null,null,null,null,null,null,null,null,null,null,null,null,null,null,null,null,null,null,null,null,null,null,null,null,null,null,null,null,null,null,null,null,null,null,null,null,null,null,null,null,null,null,null,null,null,null,null,null,null,null,null,null,null,null,null,null,null,null,null,null,null,null,null,null,null,null,null,null,null,null,null,null,null,null,null,null,null,null,null,null,null,null,null,null,null,null,null,null,null,null,null,null,null,null,null,null,null,null,null,null,null,null,null,null,null,null,null,null,null,null,null,null,null,null,null,null,null,null,null,null,null,null,null,null,null,null,null,null,null,null,null,null,null,null,null,null,null,null,null,null,null,null,null,null,null,null,null,null,null,null,null,null,null,null,null,null,null,null,null,null,null,null,null,null,null,null,null,null,null,null,null,null,null,null,null,null,null,null,null,null,null,null,null,null,null,null,null,null,null,null,null,null,null,null,null,null,null,null,null,null,null,null,null,null,null,null,null,null,null,null,null,null,null,null,null,null,null,null,null,null,null,null,null,null,null,null,null,null,null,null,null,null,null,null,null,null,null,null,null,null,null,null,null,null,null,null,null,null,null,null,null,null,null,null,null,null,null,null,null,null,null,null,null,null,null,null,null,null,null,null,null,null,null,null,null,null,null,null,null,null,null,null,null,null,null,null,null,null,null,null,null,null,null,null,null,null,null,null,null,null,null,null,null,null,null,null,null,null,null,null,null,null,null,null,null,null,null,null,null,null,null,null,null,null,null,null,null,null,null,null,null,null,null,null,null,null,null,null,null,null,null,null,null,null,null,null,null,null,null,null,null,null,null,null,null,null,null,null,null,null,null,null,null,null,null,null,null,null,null,null,null,null,null,null,null,null,null,null,null,null,null,null,null,null,null,null,null,null,null,null,null,null,null,null,null,null,null,null,null,null,null,null,null,null,null,null,null,null,null,null,null,null,null,null,null,null,null,null,null,null,null,null,null,null,null,null,null,null,null,null,null,null,null,null,null,null,null,null,null,null,null,null,null,null,null,null,null,null,5]
[null,{"$f":"IF(OR(_Die1=4,_Die1=5,_Die1=6),\"l\",\"\")","v":"l"},null,{"$f":"IF(_Die1<>1,\"l\",\"\")","v":"l"},null,null,null,null,null,null,null,null,null,null,null,null,null,null,null,null,null,null,null,null,null,null,null,null,null,null,null,null,null,null,null,null,null,null,null,null,null,null,null,null,null,null,null,null,null,null,null,null,null,null,null,null,null,null,null,null,null,null,null,null,null,null,null,null,null,null,null,null,null,null,null,null,null,null,null,null,null,null,null,null,null,null,null,null,null,null,null,null,null,null,null,null,null,null,null,null,null,null,null,null,null,null,null,null,null,null,null,null,null,null,null,null,null,null,null,null,null,null,null,null,null,null,null,null,null,null,null,null,null,null,null,null,null,null,null,null,null,null,null,null,null,null,null,null,null,null,null,null,null,null,null,null,null,null,null,null,null,null,null,null,null,null,null,null,null,null,null,null,null,null,null,null,null,null,null,null,null,null,null,null,null,null,null,null,null,null,null,null,null,null,null,null,null,null,null,null,null,null,null,null,null,null,null,null,null,null,null,null,null,null,null,null,null,null,null,null,null,null,null,null,null,null,null,null,null,null,null,null,null,null,null,null,null,null,null,null,null,null,null,null,null,null,null,null,null,null,null,null,null,null,null,null,null,null,null,null,null,null,null,null,null,null,null,null,null,null,null,null,null,null,null,null,null,null,null,null,null,null,null,null,null,null,null,null,null,null,null,null,null,null,null,null,null,null,null,null,null,null,null,null,null,null,null,null,null,null,null,null,null,null,null,null,null,null,null,null,null,null,null,null,null,null,null,null,null,null,null,null,null,null,null,null,null,null,null,null,null,null,null,null,null,null,null,null,null,null,null,null,null,null,null,null,null,null,null,null,null,null,null,null,null,null,null,null,null,null,null,null,null,null,null,null,null,null,null,null,null,null,null,null,null,null,null,null,null,null,null,null,null,null,null,null,null,null,null,null,null,null,null,null,null,null,null,null,null,null,null,null,null,null,null,null,null,null,null,null,null,null,null,null,null,null,null,null,null,null,null,null,null,null,null,null,null,null,null,null,null,null,null,null,null,null,null,null,null,null,null,null,null,null,null,null,null,null,null,null,null,null,null,null,null,null,null,null,null,null,null,null,null,null,null,null,null,null,null,null,null,null,null,null,null,null,null,null,null,null,null,null,null,null,null,null,null,null,null,null,null,null,null,null,null,null,null,null,null,null,null,null,null,null,null,null,null,null,null,null,null,null,null,null,null,null,null,null,null,null,null,null,null,null,null,null,null,null,null,null,null,null,null,null,null,null,null,null,null,null,null,null,null,null,null,null,null,null,null,null,null,null,null,null,null,null,null,null,null,null,null,null,null,null,null,null,null,null,null,null,null,null,null,null,null,null,null,null,null,null,null,null,null,null,null,null,null,null,null,null,null,null,null,null,null,null,null,null,null,null,null,null,null,null,null,null,null,null,null,null,null,null,null,null,null,null,null,null,null,null,null,null,null,null,null,null,null,null,null,null,null,null,null,null,null,null,null,null,null,null,null,null,null,null,null,null,null,null,null,null,null,null,null,null,null,null,null,null,null,null,null,null,null,null,null,null,null,null,null,null,null,null,null,null,null,null,null,null,null,null,null,null,null,null,null,null,null,null,null,null,null,null,null,null,null,null,null,null,null,null,null,null,null,null,null,null,null,null,null,null,null,null,null,null,null,null,null,null,null,null,null,null,null,null,null,null,null,null,null,null,null,null,null,null,null,null,null,null,null,null,null,null,null,null,null,null,null,null,null,null,null,null,null,null,null,null,null,null,null,null,null,null,null,null,null,null,null,null,null,null,null,null,null,null,null,null,null,null,null,null,null,null,null,null,null,null,null,null,null,null,null,null,null,null,null,null,null,null,null,null,null,null,null,null,null,null,null,null,null,null,null,null,null,null,null,null,null,null,null,null,null,null,null,null,null,null,null,null,null,null,null,null,null,null,null,null,null,null,null,null,null,null,null,null,null,null,null,null,null,null,null,null,null,null,null,null,null,null,null,null,null,null,null,null,null,null,null,null,null,null,null,null,null,null,null,null,null,null,null,null,null,null,null,null,null,null,null,null,null,null,null,null,null,null,null,null,null,null,null,null,null,null,null,null,null,null,null,null,null,null,null,null,null,null,null,null,null,null,null,null,null,null,null,null,null,null,null,null,null,null,null,null,null,null,null,null,null,null,null,null,null,null,null,null,null,null,null,null,null,null,null,null,null,null,null,null,null,null,null,null,null,null,null,null,null,null,null,null,null,null,null,null,null,null,null,null,null,null,null,null,null,null,null,null,null,null,null,null,null,null,null,null,null,null,null,null,null,null,null,null,null,null,null,null,null,null,null,null,null,null,null,null,null,null,null,null,null,null,null,null,null,null,null,null,null,null,null,null,null,null,null,null,null,null,null,null,null,null,null,null,null,null,null,null,null,null,null,null,null,null,null,null,null,null,null,null,null,null,null,null,null,null,null,null,null,null,null,null,null,null,null,null,null,null,null,null,null,null,null,null,null,null,null,null,null,null,null,null,null,null,null,null,null,null,null,null,null,null,null,null,null,null,null,null,null,null,null,null,null,null,null,null,null,null,null,null,null,null,null,null,null,null,null,null,null,null,null,null,null,null,null,null,null,null,null,null,null,null,null,null,null,null,null,null,null,null,null,null,null,null,null,null,null,null,null,null,null,null,null,null,null,null,null,null,null,null,null,null,null,null,null,null,null,null,null,null,null,null,null,null,null,null,null,null,null,null,null,null,null,null,null,null,null,null,null,null,null,null,null,null,null,null,null,null,null,null,null,null,null,null,null,null,null,null,null,null,null,null,null,null,null,null,null,null,null,null,null,null,null,null,null,null,null,null,null,null,null,null,null,null,null,null,null,null,null,null,null,null,null,null,null,null,null,null,null,null,null,null,null,null,null,null,null,null,null,null,null,null,null,null,null,null,null,null,null,null,null,null,null,null,null,null,null,null,null,null,null,null,null,null,null,null,null,null,null,null,null,null,null,null,null,null,null,null,null,null,null,null,null,null,null,null,null,null,null,null,null,null,null,null,null,null,null,null,null,null,null,null,null,null,null,null,null,null,null,null,null,null,null,null,null,null,null,null,null,null,null,null,null,null,null,null,null,null,null,null,null,null,null,null,null,null,null,null,null,null,null,null,null,null,null,null,null,null,null,null,null,null,null,null,null,null,null,null,null,null,null,null,null,null,null,null,null,null,null,null,null,null,null,null,null,null,null,null,null,null,null,null,null,null,null,null,null,null,null,null,null,null,null,null,null,null,null,null,null,null,null,null,null,null,null,null,null,null,null,null,null,null,null,null,null,null,null,null,null,null,null,null,null,null,null,null,null,null,null,null,null,null,null,null,null,null,null,null,null,null,null,null,null,null,null,null,null,null,null,null,null,null,null,null,null,null,null,null,null,null,null,null,null,null,null,null,null,null,null,null,null,null,null,null,null,null,null,null,null,null,null,null,null,null,null,null,null,null,null,null,null,null,null,null,null,null,null,null,null,null,null,null,null,null,null,null,null,null,null,null,null,null,null,null,null,null,null,null,null,null,null,null,null,null,null,null,null,null,null,null,null,null,null,null,null,null,null,null,null,null,null,null,null,null,null,null,null,null,null,null,null,null,null,null,null,null,null,null,null,null,null,null,null,null,null,null,null,null,null,null,null,null,null,null,null,null,null,null,null,null,null,null,null,null,null,null,null,null,null,null,null,null,null,null,null,null,null,null,null,null,null,null,null,null,null,null,null,null,null,null,null,null,null,null,null,null,null,null,null,null,null,null,null,null,null,null,null,null,null,null,null,null,null,null,null,null,null,null,null,null,null,null,null,null,null,null,null,null,null,null,null,null,null,null,null,null,null,null,null,null,null,null,null,null,null,null,null,null,null,null,null,null,null,null,null,null,null,null,null,null,null,null,null,null,null,null,null,null,null,null,null,null,null,null,null,null,null,null,null,null,null,null,null,null,null,null,null,null,null,null,null,null,null,null,null,null,null,null,null,null,null,null,null,null,null,null,null,null,null,null,null,null,null,null,null,null,null,null,null,null,null,null,null,null,null,null,null,null,null,null,null,null,null,null,null,null,null,null,null,null,null,null,null,null,null,null,null,null,null,null,null,null,null,null,null,null,null,null,null,null,null,null,null,null,null,null,null,null,null,null,null,null,null,null,null,null,null,null,null,null,null,null,null,null,null,null,null,null,null,null,null,null,null,null,null,null,null,null,null,null,null,null,null,null,null,null,null,null,null,null,null,null,null,null,null,null,null,null,null,null,null,null,null,null,null,null,null,null,null,null,null,null,null,null,null,null,null,null,null,null,null,null,null,null,null,null,null,null,null,null,null,null,null,null,null,null,null,null,null,null,null,null,null,null,null,null,null,null,null,null,null,null,null,null,null,null,null,null,null,null,null,null,null,null,null,null,null,null,null,null,null,null,null,null,null,null,null,null,null,null,null,null,null,null,null,null,null,null,null,null,null,null,null,null,null,null,null,null,null,null,null,null,null,null,null,null,null,null,null,null,null,null,null,null,null,null,null,null,null,null,null,null,null,null,null,null,null,null,null,null,null,null,null,null,null,null,null,null,null,null,null,null,null,null,null,null,null,null,null,null,null,null,null,null,null,null,null,null,null,null,null,null,null,null,null,null,null,null,null,null,null,null,null,null,null,null,null,null,null,null,null,null,null,null,null,null,null,null,null,null,null,null,null,null,null,null,null,null,null,null,null,null,null,null,null,null,null,null,null,null,null,null,null,null,null,null,null,null,null,null,null,null,null,null,null,null,null,null,null,null,null,null,null,null,null,null,null,null,null,null,null,null,null,null,null,null,null,null,null,null,null,null,null,null,null,null,null,null,null,null,null,null,null,null,null,null,null,null,null,null,null,null,null,null,null,null,null,null,null,null,null,null,null,null,null,null,null,null,null,null,null,null,null,null,null,null,null,null,null,null,null,null,null,null,null,null,null,null,null,null,null,null,null,null,null,null,null,null,null,null,null,null,null,null,null,null,null,null,null,null,null,null,null,null,null,null,null,null,null,null,null,null,null,null,null,null,null,null,null,null,null,null,null,null,null,null,null,null,null,null,null,null,null,null,null,null,null,null,null,null,null,null,null,null,null,null,null,null,null,null,null,null,null,null,null,null,null,null,null,null,null,null,null,null,null,null,null,null,null,null,null,null,null,null,null,null,null,null,null,null,null,null,null,null,null,null,null,null,null,null,null,null,null,null,null,null,null,null,null,null,null,null,null,null,null,null,null,null,null,null,null,null,null,null,null,null,null,null,null,null,null,null,null,null,null,null,null,null,null,null,null,null,null,null,null,null,null,null,null,null,null,null,null,null,null,null,null,null,null,null,null,null,null,null,null,null,null,null,null,null,null,null,null,null,null,null,null,null,null,null,null,null,null,null,null,null,null,null,null,null,null,null,null,null,null,null,null,null,null,null,null,null,null,null,null,null,null,null,null,null,null,null,null,null,null,null,null,null,null,null,null,null,null,null,null,null,null,null,null,null,null,null,null,null,null,null,null,null,null,null,null,null,null,null,null,null,null,null,null,null,null,null,null,null,null,null,null,null,null,null,null,null,null,null,null,null,null,null,null,null,null,null,null,null,null,null,null,null,null,null,null,null,null,null,null,null,null,null,null,null,null,null,null,null,null,null,null,null,null,null,null,null,null,null,null,null,null,null,null,null,null,null,null,null,null,null,null,null,null,null,null,null,null,null,null,null,null,null,null,null,null,null,null,null,null,null,null,null,null,null,null,null,null,null,null,null,null,null,null,null,null,null,null,null,null,null,null,null,null,null,null,null,null,null,null,null,null,null,null,null,null,null,null,null,null,null,null,null,null,null,null,null,null,null,null,null,null,null,null,null,null,null,null,null,null,null,null,null,null,null,null,null,null,null,null,null,null,null,null,null,null,null,null,null,null,null,null,null,null,null,null,null,null,null,null,null,null,null,null,null,null,null,null,null,null,null,null,null,null,null,null,null,null,null,null,null,null,null,null,null,null,null,null,null,null,null,null,null,null,null,null,null,null,null,null,null,null,null,null,null,null,null,null,null,null,null,null,null,null,null,null,null,null,null,null,null,null,null,null,null,null,null,null,null,null,null,null,null,null,null,null,null,null,null,null,null,null,null,null,null,null,null,null,null,null,null,null,null,null,null,null,null,null,null,null,null,null,null,null,null,null,null,null,null,null,null,null,null,null,null,null,null,null,null,null,null,null,null,null,null,null,null,null,null,null,null,null,null,null,null,null,null,null,null,null,null,null,null,null,null,null,null,null,null,null,null,null,null,null,null,null,null,null,null,null,null,null,null,null,null,null,null,null,null,null,null,null,null,null,null,null,null,null,null,null,null,null,null,null,null,null,null,null,null,null,null,null,null,null,null,null,null,null,null,null,null,null,null,null,null,null,null,null,null,null,null,null,null,null,null,null,null,null,null,null,null,null,null,null,null,null,null,null,null,null,null,null,null,null,null,null,null,null,null,null,null,null,null,null,null,null,null,null,null,null,null,null,null,null,null,null,null,null,null,null,null,null,null,null,null,null,null,null,null,null,null,null,null,null,null,null,null,null,null,null,null,null,null,null,null,null,null,null,null,null,null,null,null,null,null,null,null,null,null,null,null,null,null,null,null,null,null,null,null,null,null,null,null,null,null,null,null,null,null,null,null,1]
[null,{"$f":"IF(_Die1=6,\"l\",\"\")","v":""},{"$f":"IF(OR(_Die1=1,_Die1=3,_Die1=5),\"l\",\"\")","v":""},{"$f":"IF(_Die1=6,\"l\",\"\")","v":""}]
[null,{"$f":"IF(_Die1<>1,\"l\",\"\")","v":"l"},null,{"$f":"IF(_Die1>=4,\"l\",\"\")","v":"l"}]
[]
[]
["Die 1:",4]
[]
[]
[]
["Roll No.","Outcome"]
[null,null,null,null,null,1,{"$f":"FREQUENCY(B13:B5000,F13:F18)","v":0},null,{"$f":"G20/6","v":0}]
[null,null,null,null,null,2,0,null,{"$f":"G20/6","v":0}]
[null,null,null,null,null,3,0,null,{"$f":"G20/6","v":0}]
[null,null,null,null,null,4,0,null,{"$f":"G20/6","v":0}]
[null,null,null,null,null,5,0,null,{"$f":"G20/6","v":0}]
[null,null,null,null,null,6,0,null,{"$f":"G20/6","v":0}]
[]
[null,null,null,null,null,"Total Rolls",{"$f":"SUM(G13:G18)","v":0}]

{"sheet":"10Rolls","index":1,"n_rows":11,"n_cols":8,"rows_kept":11,"cut":false,"hidden":true,"merged":[]}
[null,"Score on Dice",null,"Total Score","Number of times"]
[null,{"$f":"ROUND(RAND()*5,0)+1","v":2},null,1,{"$f":"COUNTIF(B2:B11,1)","v":0},null,1,1.6666666666666667]
[null,{"$f":"ROUND(RAND()*5,0)+1","v":6},null,2,{"$f":"COUNTIF(B2:B11,2)","v":3},null,2,1.6666666666666667]
[null,4,null,3,{"$f":"COUNTIF(B2:B11,3)","v":2},null,3,1.6666666666666667]
[null,2,null,4,{"$f":"COUNTIF(B2:B11,4)","v":2},null,4,1.6666666666666667]
[null,3,null,5,{"$f":"COUNTIF(B2:B11,5)","v":1},null,5,1.6666666666666667]
[null,6,null,6,{"$f":"COUNTIF(B2:B11,6)","v":2},null,6,1.6666666666666667]
[null,2]
[null,5,null,"Total number of rolls",{"$f":"SUM(E2:E7)","v":10}]
[null,4]
[null,3]

{"sheet":"100Rolls","index":2,"n_rows":101,"n_cols":8,"rows_kept":101,"cut":false,"hidden":true,"merged":[]}
[null,"Score on Dice",null,"Total Score","Number of times"]
[null,{"$f":"ROUND(RAND()*5,0)+1","v":2},null,1,{"$f":"COUNTIF(B2:B101,1)","v":7},null,1,{"$f":"100/6","v":16.666666666666668}]
[null,{"$f":"ROUND(RAND()*5,0)+1","v":4},null,2,{"$f":"COUNTIF(B2:B101,2)","v":22},null,2,16.666666666666668]
[null,2,null,3,{"$f":"COUNTIF(B2:B101,3)","v":20},null,3,16.666666666666668]
[null,2,null,4,{"$f":"COUNTIF(B2:B101,4)","v":24},null,4,16.666666666666668]
[null,5,null,5,{"$f":"COUNTIF(B2:B101,5)","v":19},null,5,16.666666666666668]
[null,3,null,6,{"$f":"COUNTIF(B2:B101,6)","v":8},null,6,16.666666666666668]
[null,1,null,null,null,{"$f":"ROUND(RAND()*5,0)+1","v":2}]
[null,5,null,"Total number of rolls",{"$f":"SUM(E2:E7)","v":100},null,"Press F9 to roll the dice"]
[null,3]
[null,2]
[null,5]
[null,2]
[null,5]
[null,3]
[null,6]
[null,2]
[null,4]
[null,3]
[null,5]
[null,4]
[null,4]
[null,4]
[null,2]
[null,5]
[null,1]
[null,4]
[null,4]
[null,5]
[null,4]
[null,2]
[null,5]
[null,6]
[null,2]
[null,4]
[null,4]
[null,4]
[null,3]
[null,6]
[null,2]
[null,4]
[null,4]
[null,5]
[null,5]
[null,6]
[null,3]
[null,3]
[null,3]
[null,3]
[null,5]
[null,6]
[null,4]
[null,2]
[null,4]
[null,2]
[null,1]
[null,2]
[null,4]
[null,3]
[null,2]
[null,3]
[null,3]
[null,2]
[null,5]
[null,3]
[null,4]
[null,{"$f":"ROUND(RAND()*5,0)+1","v":5}]
[null,5]
[null,2]
[null,6]
[null,6]
[null,5]
[null,2]
[null,4]
[null,1]
[null,1]
[null,2]
[null,5]
[null,2]
[null,4]
[null,4]
[null,4]
[null,3]
[null,5]
[null,3]
[null,3]
[null,5]
[null,6]
[null,4]
[null,2]
[null,3]
[null,1]
[null,4]
[null,4]
[null,2]
[null,5]
[null,1]
[null,3]
[null,3]
[null,2]
[null,3]

{"sheet":"1000Rolls","index":3,"n_rows":1001,"n_cols":8,"rows_kept":1001,"cut":false,"hidden":true,"merged":[]}
[null,"Score on Dice",null,"Score on Die","Frequency",null,1,{"$f":"1000/6","v":166.66666666666666}]
[null,{"$f":"ROUND(RAND()*5,0)+1","v":1},null,1,{"$f":"COUNTIF(B2:B1001,1)","v":92},null,2,166.66666666666666]
[null,{"$f":"ROUND(RAND()*5,0)+1","v":5},null,2,{"$f":"COUNTIF(B2:B1001,2)","v":190},null,3,166.66666666666666]
[null,3,null,3,{"$f":"COUNTIF(B2:B1001,3)","v":212},null,4,166.66666666666666]
[null,3,null,4,{"$f":"COUNTIF(B2:B1001,4)","v":201},null,5,166.66666666666666]
[null,6,null,5,{"$f":"COUNTIF(B2:B1001,5)","v":200},null,6,166.66666666666666]
[null,5,null,6,{"$f":"COUNTIF(B2:B1001,6)","v":105}]
[null,4]
[null,2,null,"Total number of rolls",{"$f":"SUM(E2:E7)","v":1000},null,"Press F9 to roll the dice"]
[null,3]
[null,3]
[null,4]
[null,5]
[null,6]
[null,4]
[null,3]
[null,5]
[null,3]
[null,3]
[null,5]
[null,3]
[null,1]
[null,6]
[null,5]
[null,5]
[null,2]
[null,6]
[null,1]
[null,1]
[null,5]
[null,2]
[null,2]
[null,6]
[null,1]
[null,2]
[null,5]
[null,2]
[null,6]
[null,3]
[null,3]
[null,5]
[null,4]
[null,4]
[null,5]
[null,5]
[null,4]
[null,5]
[null,6]
[null,1]
[null,5]
[null,2]
[null,2]
[null,2]
[null,2]
[null,4]
[null,4]
[null,3]
[null,2]
[null,3]
[null,3]
[null,2]
[null,5]
[null,4]
[null,3]
[null,1]
[null,1]
[null,{"$f":"ROUND(RAND()*5,0)+1","v":2}]
[null,3]
[null,2]
[null,4]
[null,3]
[null,3]
[null,1]
[null,2]
[null,4]
[null,2]
[null,3]
[null,5]
[null,6]
[null,3]
[null,2]
[null,3]
[null,6]
[null,4]
[null,4]
[null,3]
[null,3]
[null,4]
[null,2]
[null,4]
[null,5]
[null,2]
[null,3]
[null,2]
[null,5]
[null,3]
[null,5]
[null,5]
[null,6]
[null,6]
[null,3]
[null,5]
[null,1]
[null,2]
[null,1]
[null,6]
[null,1]
[null,5]
[null,1]
[null,1]
[null,2]
[null,1]
[null,3]
[null,1]
[null,4]
[null,2]
[null,4]
[null,2]
[null,5]
[null,4]
[null,5]
[null,3]
[null,2]
[null,4]
[null,4]
[null,2]
[null,1]
[null,5]
[null,2]
[null,1]
[null,{"$f":"ROUND(RAND()*5,0)+1","v":5}]
[null,2]
[null,6]
[null,1]
[null,1]
[null,4]
[null,2]
[null,4]
[null,6]
[null,4]
[null,5]
[null,2]
[null,3]
[null,1]
[null,5]
[null,2]
[null,3]
[null,6]
[null,2]
[null,3]
[null,4]
[null,4]
[null,5]
[null,3]
[null,4]
[null,4]
[null,1]
[null,4]
[null,5]
[null,5]
[null,4]
[null,5]
[null,5]
[null,4]
[null,1]
[null,3]
[null,5]
[null,1]
[null,3]
[null,2]
[null,5]
[null,3]
[null,2]
[null,2]
[null,5]
[null,6]
[null,3]
[null,3]
[null,1]
[null,5]
[null,2]
[null,3]
[null,4]
[null,2]
[null,3]
[null,1]
[null,2]
[null,4]
[null,5]
[null,3]
[null,3]
[null,2]
[null,2]
[null,4]
[null,{"$f":"ROUND(RAND()*5,0)+1","v":3}]
[null,6]
[null,3]
[null,6]
[null,2]
[null,2]
[null,5]
[null,4]
[null,2]
[null,2]
[null,3]
[null,3]
[null,2]
[null,2]
[null,4]
[null,5]
[null,6]
[null,2]
[null,4]
[null,2]
[null,3]
[null,5]
[null,1]
[null,2]
[null,3]
[null,1]
[null,6]
[null,5]
[null,1]
[null,2]
[null,2]
[null,4]
[null,1]
[null,3]
[null,4]
[null,3]
[null,2]
[null,5]
[null,5]
[null,5]
[null,2]
[null,2]
[null,6]
[null,4]
[null,3]
[null,3]
[null,3]
[null,5]
[null,2]
[null,5]
[null,3]
[null,4]
[null,4]
[null,4]
[null,1]
[null,5]
[null,4]
[null,4]
[null,5]
[null,5]
[null,4]
[null,5]
[null,1]
[null,2]
[null,{"$f":"ROUND(RAND()*5,0)+1","v":6}]
[null,2]
[null,4]
[null,5]
[null,1]
[null,5]
[null,4]
[null,4]
[null,4]
[null,4]
[null,5]
[null,4]
[null,1]
[null,1]
[null,1]
[null,4]
[null,4]
[null,1]
[null,6]
[null,2]
[null,2]
[null,2]
[null,4]
[null,1]
[null,1]
[null,5]
[null,3]
[null,5]
[null,3]
[null,6]
[null,4]
[null,1]
[null,1]
[null,4]
[null,4]
[null,2]
[null,4]
[null,5]
[null,6]
[null,3]
[null,5]
[null,4]
[null,6]
[null,2]
[null,2]
[null,5]
[null,6]
[null,2]
[null,3]
[null,3]
[null,6]
[null,5]
[null,6]
[null,5]
[null,5]
[null,5]
[null,3]
[null,6]
[null,3]
[null,5]
[null,3]
[null,3]
[null,2]
[null,5]
[null,{"$f":"ROUND(RAND()*5,0)+1","v":3}]
[null,5]
[null,5]
[null,4]
[null,4]
[null,3]
[null,5]
[null,5]
[null,2]
[null,1]
[null,5]
[null,3]
[null,4]
[null,2]
[null,2]
[null,4]
[null,4]
[null,5]
[null,2]
[null,2]
[null,6]
[null,2]
[null,6]
[null,5]
[null,5]
[null,5]
[null,4]
[null,5]
[null,2]
[null,2]
[null,6]
[null,6]
[null,4]
[null,1]
[null,5]
[null,2]
[null,4]
[null,5]
[null,5]
[null,5]
[null,6]
[null,4]
[null,3]
[null,3]
[null,6]
[null,3]
[null,6]
[null,2]
[null,6]
[null,3]
[null,3]
[null,6]
[null,3]
[null,3]
[null,3]
[null,5]
[null,4]
[null,4]
[null,6]
[null,3]
[null,2]
[null,1]
[null,4]
[null,2]
[null,{"$f":"ROUND(RAND()*5,0)+1","v":4}]
[null,4]
[null,4]
[null,3]
[null,2]
[null,4]
[null,1]
[null,3]
[null,4]
[null,3]
[null,5]
[null,1]
[null,5]
[null,2]
[null,3]
[null,2]
[null,5]
[null,4]
[null,5]
[null,4]
[null,3]
[null,3]
[null,3]
[null,3]
[null,2]
[null,2]
[null,4]
[null,5]
[null,4]
[null,5]
[null,4]
[null,3]
[null,3]
[null,3]
[null,4]
[null,3]
[null,1]
[null,3]
[null,5]
[null,4]
[null,4]
[null,3]
[null,3]
[null,1]
[null,2]
[null,5]
[null,3]
[null,5]
[null,5]
[null,4]
[null,2]
[null,5]
[null,2]
[null,2]
[null,6]
[null,2]
[null,4]
[null,3]
[null,3]
[null,4]
[null,2]
[null,3]
[null,5]
[null,2]
[null,{"$f":"ROUND(RAND()*5,0)+1","v":3}]
[null,5]
[null,5]
[null,3]
[null,5]
[null,3]
[null,6]
[null,6]
[null,6]
[null,6]
[null,4]
[null,2]
[null,4]
[null,3]
[null,2]
[null,5]
[null,2]
[null,5]
[null,2]
[null,5]
[null,2]
[null,4]
[null,2]
[null,3]
[null,4]
[null,6]
[null,3]
[null,2]
[null,5]
[null,6]
[null,5]
[null,1]
[null,5]
[null,6]
[null,6]
[null,4]
[null,4]
[null,4]
[null,2]
[null,6]
[null,5]
[null,5]
[null,1]
[null,2]
[null,2]
[null,4]
[null,2]
[null,4]
[null,3]
[null,3]
[null,2]
[null,4]
[null,5]
[null,5]
[null,3]
[null,2]
[null,4]
[null,3]
[null,1]
[null,2]
[null,3]
[null,1]
[null,5]
[null,6]
[null,{"$f":"ROUND(RAND()*5,0)+1","v":4}]
[null,4]
[null,6]
[null,6]
[null,3]
[null,5]
[null,2]
[null,2]
[null,3]
[null,5]
[null,4]
[null,4]
[null,2]
[null,3]
[null,2]
[null,4]
[null,3]
[null,4]
[null,3]
[null,1]
[null,5]
[null,2]
[null,4]
[null,4]
[null,5]
[null,6]
[null,3]
[null,4]
[null,4]
[null,5]
[null,1]
[null,3]
[null,3]
[null,6]
[null,3]
[null,1]
[null,1]
[null,4]
[null,2]
[null,5]
[null,3]
[null,5]
[null,4]
[null,3]
[null,4]
[null,3]
[null,1]
[null,5]
[null,4]
[null,5]
[null,3]
[null,2]
[null,4]
[null,4]
[null,5]
[null,5]
[null,5]
[null,1]
[null,4]
[null,4]
[null,3]
[null,3]
[null,2]
[null,6]
[null,{"$f":"ROUND(RAND()*5,0)+1","v":5}]
[null,3]
[null,5]
[null,3]
[null,5]
[null,6]
[null,6]
[null,2]
[null,2]
[null,5]
[null,3]
[null,2]
[null,4]
[null,3]
[null,6]
[null,4]
[null,5]
[null,4]
[null,5]
[null,2]
[null,4]
[null,4]
[null,4]
[null,3]
[null,5]
[null,5]
[null,1]
[null,3]
[null,6]
[null,4]
[null,2]
[null,6]
[null,5]
[null,2]
[null,3]
[null,3]
[null,4]
[null,6]
[null,3]
[null,4]
[null,1]
[null,5]
[null,2]
[null,5]
[null,4]
[null,5]
[null,4]
[null,2]
[null,2]
[null,3]
[null,5]
[null,4]
[null,3]
[null,4]
[null,5]
[null,3]
[null,5]
[null,4]
[null,4]
[null,3]
[null,3]
[null,3]
[null,3]
[null,1]
[null,{"$f":"ROUND(RAND()*5,0)+1","v":4}]
[null,2]
[null,5]
[null,2]
[null,3]
[null,6]
[null,2]
[null,3]
[null,2]
[null,4]
[null,4]
[null,5]
[null,3]
[null,5]
[null,5]
[null,5]
[null,1]
[null,6]
[null,5]
[null,4]
[null,6]
[null,2]
[null,2]
[null,3]
[null,5]
[null,5]
[null,1]
[null,1]
[null,5]
[null,4]
[null,4]
[null,3]
[null,4]
[null,6]
[null,1]
[null,6]
[null,3]
[null,1]
[null,5]
[null,5]
[null,1]
[null,3]
[null,2]
[null,3]
[null,3]
[null,5]
[null,4]
[null,3]
[null,5]
[null,3]
[null,2]
[null,2]
[null,5]
[null,2]
[null,6]
[null,6]
[null,4]
[null,3]
[null,3]
[null,5]
[null,3]
[null,3]
[null,4]
[null,5]
[null,{"$f":"ROUND(RAND()*5,0)+1","v":2}]
[null,1]
[null,3]
[null,2]
[null,4]
[null,3]
[null,3]
[null,2]
[null,1]
[null,2]
[null,2]
[null,4]
[null,2]
[null,3]
[null,5]
[null,5]
[null,4]
[null,4]
[null,3]
[null,6]
[null,2]
[null,5]
[null,3]
[null,3]
[null,5]
[null,2]
[null,2]
[null,3]
[null,5]
[null,2]
[null,4]
[null,5]
[null,6]
[null,1]
[null,5]
[null,5]
[null,4]
[null,6]
[null,3]
[null,2]
[null,5]
[null,5]
[null,6]
[null,6]
[null,3]
[null,6]
[null,4]
[null,1]
[null,3]
[null,4]
[null,3]
[null,5]
[null,5]
[null,2]
[null,5]
[null,3]
[null,3]
[null,2]
[null,4]
[null,3]
[null,2]
[null,2]
[null,2]
[null,4]
[null,{"$f":"ROUND(RAND()*5,0)+1","v":6}]
[null,3]
[null,4]
[null,3]
[null,4]
[null,3]
[null,5]
[null,6]
[null,6]
[null,3]
[null,5]
[null,4]
[null,2]
[null,5]
[null,4]
[null,2]
[null,4]
[null,2]
[null,6]
[null,4]
[null,2]
[null,3]
[null,2]
[null,6]
[null,4]
[null,6]
[null,4]
[null,4]
[null,4]
[null,6]
[null,5]
[null,5]
[null,3]
[null,2]
[null,4]
[null,6]
[null,4]
[null,2]
[null,5]
[null,4]
[null,3]
[null,4]
[null,4]
[null,2]
[null,2]
[null,6]
[null,3]
[null,4]
[null,4]
[null,2]
[null,2]
[null,4]
[null,4]
[null,4]
[null,2]
[null,3]
[null,4]
[null,2]
[null,3]
[null,3]
[null,2]
[null,1]
[null,5]
[null,1]
[null,{"$f":"ROUND(RAND()*5,0)+1","v":5}]
[null,2]
[null,5]
[null,1]
[null,2]
[null,6]
[null,2]
[null,5]
[null,2]
[null,4]
[null,6]
[null,3]
[null,3]
[null,3]
[null,1]
[null,3]
[null,5]
[null,3]
[null,4]
[null,3]
[null,2]
[null,5]
[null,5]
[null,4]
[null,3]
[null,3]
[null,6]
[null,5]
[null,4]
[null,3]
[null,3]
[null,5]
[null,2]
[null,4]
[null,6]
[null,4]
[null,3]
[null,2]
[null,5]
[null,6]
[null,1]
[null,6]
[null,4]
[null,1]
[null,6]
[null,5]
[null,1]
[null,3]
[null,4]
[null,5]
[null,5]
[null,6]
[null,2]
[null,3]
[null,2]
[null,1]
[null,6]
[null,2]
[null,4]
[null,4]
[null,2]
[null,5]
[null,5]
[null,2]
[null,{"$f":"ROUND(RAND()*5,0)+1","v":6}]
[null,1]
[null,3]
[null,2]
[null,4]
[null,3]
[null,6]
[null,6]
[null,2]
[null,4]
[null,1]
[null,5]
[null,2]
[null,6]
[null,6]
[null,3]
[null,3]
[null,1]
[null,1]
[null,1]
[null,6]
[null,3]
[null,2]
[null,5]
[null,4]
[null,3]
[null,1]
[null,3]
[null,5]
[null,3]
[null,3]
[null,4]
[null,2]
[null,1]
[null,3]
[null,3]
[null,3]
[null,5]
[null,4]
[null,3]
[null,4]
[null,1]
[null,6]
[null,4]
[null,2]
[null,3]
[null,2]
[null,3]
[null,1]
[null,3]
[null,5]
[null,3]
[null,4]
[null,5]
[null,3]
[null,2]
[null,4]
[null,4]
[null,1]
[null,3]
[null,4]
[null,6]
[null,3]
[null,4]
[null,{"$f":"ROUND(RAND()*5,0)+1","v":2}]
[null,3]
[null,5]
[null,3]
[null,6]
[null,6]
[null,2]
[null,2]
[null,4]
[null,5]
[null,5]
[null,4]
[null,6]
[null,5]
[null,4]
[null,5]
[null,5]
[null,2]
[null,3]
[null,5]
[null,5]
[null,4]
[null,5]
[null,1]
[null,1]
[null,1]
[null,2]
[null,2]
[null,5]
[null,2]
[null,6]
[null,4]
[null,3]
[null,2]
[null,2]
[null,4]
[null,2]
[null,4]
[null,5]

{"sheet":"Instructions 2 dice","index":4,"n_rows":2213,"n_cols":9,"rows_kept":2213,"cut":false,"hidden":true,"merged":[[10,0,10,3]]}
[]
[]
[null,{"$f":"IF(OR(_Die1=4,_Die1=5,_Die1=6),\"l\",\"\")","v":"l"},null,{"$f":"IF(_Die1<>1,\"l\",\"\")","v":"l"},null,{"$f":"IF(OR(_Die2=4,_Die2=5,_Die2=6),\"l\",\"\")","v":"l"},null,{"$f":"IF(_Die2<>1,\"l\",\"\")","v":"l"}]
[null,{"$f":"IF(_Die1=6,\"l\",\"\")","v":""},{"$f":"IF(OR(_Die1=1,_Die1=3,_Die1=5),\"l\",\"\")","v":""},{"$f":"IF(_Die1=6,\"l\",\"\")","v":""},null,{"$f":"IF(_Die2=6,\"l\",\"\")","v":"l"},{"$f":"IF(OR(_Die2=1,_Die2=3,_Die2=5),\"l\",\"\")","v":""},{"$f":"IF(_Die2=6,\"l\",\"\")","v":"l"}]
[null,{"$f":"IF(_Die1<>1,\"l\",\"\")","v":"l"},null,{"$f":"IF(_Die1>=4,\"l\",\"\")","v":"l"},null,{"$f":"IF(_Die2<>1,\"l\",\"\")","v":"l"},null,{"$f":"IF(_Die2>=4,\"l\",\"\")","v":"l"}]
[]
[null,null,null,null,null,"Score on dice","Freq."]
["Die 1:",3,null,null,null,1,0]
["Die 2:",6,null,null,null,2,{"$f":"COUNTIF(D13:D2013,2)","v":0}]
["Total:",{"$f":"B8+B9","v":9},null,null,null,3,{"$f":"COUNTIF(D13:D2013,3)","v":0}]
[null,null,null,null,null,4,{"$f":"COUNTIF(D13:D2013,4)","v":0}]
["Roll #","D1","D2","Total",null,5,{"$f":"COUNTIF(D13:D2013,5)","v":0}]
[null,null,null,{"$f":"B13+C13","v":0},null,6,{"$f":"COUNTIF(D13:D2013,6)","v":0}]
[null,null,null,{"$f":"B14+C14","v":0},null,7,{"$f":"COUNTIF(D13:D2013,7)","v":0}]
[null,null,null,0,null,8,{"$f":"COUNTIF(D13:D2013,8)","v":0}]
[null,null,null,0,null,9,{"$f":"COUNTIF(D13:D2013,9)","v":0}]
[null,null,null,0,null,10,{"$f":"COUNTIF(D13:D2013,10)","v":0}]
[null,null,null,0,null,11,{"$f":"COUNTIF(D13:D2013,11)","v":0}]
[null,null,null,0,null,12,{"$f":"COUNTIF(D13:D2013,12)","v":0}]
[null,null,null,0,null,"Total rolls",{"$f":"SUM(G8:G19)","v":0}]
[null,null,null,0,null,null,null,null,0]
[null,null,null,0,null,null,null,null,{"$f":"G20/36","v":0}]
[null,null,null,0,null,null,null,null,{"$f":"2*G20/36","v":0}]
[null,null,null,0,null,null,null,null,{"$f":"3*G20/36","v":0}]
[null,null,null,0,null,null,null,null,{"$f":"4*G20/36","v":0}]
[null,null,null,0,null,null,null,null,{"$f":"5*G20/36","v":0}]
[null,null,null,0,null,null,null,null,{"$f":"6*G20/36","v":0}]
[null,null,null,0,null,null,null,null,{"$f":"5*G20/36","v":0}]
[null,null,null,0,null,null,null,null,{"$f":"4*G20/36","v":0}]
[null,null,null,0,null,null,null,null,{"$f":"3*G20/36","v":0}]
[null,null,null,0,null,null,null,null,{"$f":"2*G20/36","v":0}]
[null,null,null,0,null,null,null,null,{"$f":"1*G20/36","v":0}]
[null,null,null,0]
[null,null,null,0]
[null,null,null,0]
[null,null,null,0]
[null,null,null,0]
[null,null,null,0]
[null,null,null,0]
[null,null,null,0]
[null,null,null,0]
[null,null,null,0]
[null,null,null,0]
[null,null,null,0]
[null,null,null,0]
[null,null,null,0]
[null,null,null,0]
[null,null,null,0]
[null,null,null,0]
[null,null,null,0]
[null,null,null,0]
[null,null,null,0]
[null,null,null,0]
[null,null,null,0]
[null,null,null,0]
[null,null,null,0]
[null,null,null,0]
[null,null,null,0]
[null,null,null,0]
[null,null,null,0]
[null,null,null,0]
[null,null,null,0]
[null,null,null,0]
[null,null,null,0]
[null,null,null,0]
[null,null,null,0]
[null,null,null,0]
[null,null,null,0]
[null,null,null,0]
[null,null,null,0]
[null,null,null,0]
[null,null,null,0]
[null,null,null,0]
[null,null,null,0]
[null,null,null,0]
[null,null,null,0]
[null,null,null,0]
[null,null,null,{"$f":"B78+C78","v":0}]
[null,null,null,0]
[null,null,null,0]
[null,null,null,0]
[null,null,null,0]
[null,null,null,0]
[null,null,null,0]
[null,null,null,0]
[null,null,null,0]
[null,null,null,0]
[null,null,null,0]
[null,null,null,0]
[null,null,null,0]
[null,null,null,0]
[null,null,null,0]
[null,null,null,0]
[null,null,null,0]
[null,null,null,0]
[null,null,null,0]
[null,null,null,0]
[null,null,null,0]
[null,null,null,0]
[null,null,null,0]
[null,null,null,0]
[null,null,null,0]
[null,null,null,0]
[null,null,null,0]
[null,null,null,0]
[null,null,null,0]
[null,null,null,0]
[null,null,null,0]
[null,null,null,0]
[null,null,null,0]
[null,null,null,0]
[null,null,null,0]
[null,null,null,0]
[null,null,null,0]
[null,null,null,0]
[null,null,null,0]
[null,null,null,0]
[null,null,null,0]
[null,null,null,0]
[null,null,null,0]
[null,null,null,0]
[null,null,null,0]
[null,null,null,0]
[null,null,null,0]
[null,null,null,0]
[null,null,null,0]
[null,null,null,0]
[null,null,null,0]
[null,null,null,0]
[null,null,null,0]
[null,null,null,0]
[null,null,null,0]
[null,null,null,0]
[null,null,null,0]
[null,null,null,0]
[null,null,null,0]
[null,null,null,0]
[null,null,null,0]
[null,null,null,0]
[null,null,null,0]
[null,null,null,0]
[null,null,null,{"$f":"B142+C142","v":0}]
[null,null,null,0]
[null,null,null,0]
[null,null,null,0]
[null,null,null,0]
[null,null,null,0]
[null,null,null,0]
[null,null,null,0]
[null,null,null,0]
[null,null,null,0]
[null,null,null,0]
[null,null,null,0]
[null,null,null,0]
[null,null,null,0]
[null,null,null,0]
[null,null,null,0]
[null,null,null,0]
[null,null,null,0]
[null,null,null,0]
[null,null,null,0]
[null,null,null,0]
[null,null,null,0]
[null,null,null,0]
[null,null,null,0]
[null,null,null,0]
[null,null,null,0]
[null,null,null,0]
[null,null,null,0]
[null,null,null,0]
[null,null,null,0]
[null,null,null,0]
[null,null,null,0]
[null,null,null,0]
[null,null,null,0]
[null,null,null,0]
[null,null,null,0]
[null,null,null,0]
[null,null,null,0]
[null,null,null,0]
[null,null,null,0]
[null,null,null,0]
[null,null,null,0]
[null,null,null,0]
[null,null,null,0]
[null,null,null,0]
[null,null,null,0]
[null,null,null,0]
[null,null,null,0]
[null,null,null,0]
[null,null,null,0]
[null,null,null,0]
[null,null,null,0]
[null,null,null,0]
[null,null,null,0]
[null,null,null,0]
[null,null,null,0]
[null,null,null,0]
[null,null,null,0]
[null,null,null,0]
[null,null,null,0]
[null,null,null,0]
[null,null,null,0]
[null,null,null,0]
[null,null,null,0]
[null,null,null,{"$f":"B206+C206","v":0}]
[null,null,null,0]
[null,null,null,0]
[null,null,null,0]
[null,null,null,0]
[null,null,null,0]
[null,null,null,0]
[null,null,null,0]
[null,null,null,0]
[null,null,null,0]
[null,null,null,0]
[null,null,null,0]
[null,null,null,0]
[null,null,null,0]
[null,null,null,0]
[null,null,null,0]
[null,null,null,0]
[null,null,null,0]
[null,null,null,0]
[null,null,null,0]
[null,null,null,0]
[null,null,null,0]
[null,null,null,0]
[null,null,null,0]
[null,null,null,0]
[null,null,null,0]
[null,null,null,0]
[null,null,null,0]
[null,null,null,0]
[null,null,null,0]
[null,null,null,0]
[null,null,null,0]
[null,null,null,0]
[null,null,null,0]
[null,null,null,0]
[null,null,null,0]
[null,null,null,0]
[null,null,null,0]
[null,null,null,0]
[null,null,null,0]
[null,null,null,0]
[null,null,null,0]
[null,null,null,0]
[null,null,null,0]
[null,null,null,0]
[null,null,null,0]
[null,null,null,0]
[null,null,null,0]
[null,null,null,0]
[null,null,null,0]
[null,null,null,0]
[null,null,null,0]
[null,null,null,0]
[null,null,null,0]
[null,null,null,0]
[null,null,null,0]
[null,null,null,0]
[null,null,null,0]
[null,null,null,0]
[null,null,null,0]
[null,null,null,0]
[null,null,null,0]
[null,null,null,0]
[null,null,null,0]
[null,null,null,{"$f":"B270+C270","v":0}]
[null,null,null,0]
[null,null,null,0]
[null,null,null,0]
[null,null,null,0]
[null,null,null,0]
[null,null,null,0]
[null,null,null,0]
[null,null,null,0]
[null,null,null,0]
[null,null,null,0]
[null,null,null,0]
[null,null,null,0]
[null,null,null,0]
[null,null,null,0]
[null,null,null,0]
[null,null,null,0]
[null,null,null,0]
[null,null,null,0]
[null,null,null,0]
[null,null,null,0]
[null,null,null,0]
[null,null,null,0]
[null,null,null,0]
[null,null,null,0]
[null,null,null,0]
[null,null,null,0]
[null,null,null,0]
[null,null,null,0]
[null,null,null,0]
[null,null,null,0]
[null,null,null,0]
[null,null,null,0]
[null,null,null,0]
[null,null,null,0]
[null,null,null,0]
[null,null,null,0]
[null,null,null,0]
[null,null,null,0]
[null,null,null,0]
[null,null,null,0]
[null,null,null,0]
[null,null,null,0]
[null,null,null,0]
[null,null,null,0]
[null,null,null,0]
[null,null,null,0]
[null,null,null,0]
[null,null,null,0]
[null,null,null,0]
[null,null,null,0]
[null,null,null,0]
[null,null,null,0]
[null,null,null,0]
[null,null,null,0]
[null,null,null,0]
[null,null,null,0]
[null,null,null,0]
[null,null,null,0]
[null,null,null,0]
[null,null,null,0]
[null,null,null,0]
[null,null,null,0]
[null,null,null,0]
[null,null,null,{"$f":"B334+C334","v":0}]
[null,null,null,0]
[null,null,null,0]
[null,null,null,0]
[null,null,null,0]
[null,null,null,0]
[null,null,null,0]
[null,null,null,0]
[null,null,null,0]
[null,null,null,0]
[null,null,null,0]
[null,null,null,0]
[null,null,null,0]
[null,null,null,0]
[null,null,null,0]
[null,null,null,0]
[null,null,null,0]
[null,null,null,0]
[null,null,null,0]
[null,null,null,0]
[null,null,null,0]
[null,null,null,0]
[null,null,null,0]
[null,null,null,0]
[null,null,null,0]
[null,null,null,0]
[null,null,null,0]
[null,null,null,0]
[null,null,null,0]
[null,null,null,0]
[null,null,null,0]
[null,null,null,0]
[null,null,null,0]
[null,null,null,0]
[null,null,null,0]
[null,null,null,0]
[null,null,null,0]
[null,null,null,0]
[null,null,null,0]
[null,null,null,0]
[null,null,null,0]
[null,null,null,0]
[null,null,null,0]
[null,null,null,0]
[null,null,null,0]
[null,null,null,0]
[null,null,null,0]
[null,null,null,0]
[null,null,null,0]
[null,null,null,0]
[null,null,null,0]
[null,null,null,0]
[null,null,null,0]
[null,null,null,0]
[null,null,null,0]
[null,null,null,0]
[null,null,null,0]
[null,null,null,0]
[null,null,null,0]
[null,null,null,0]
[null,null,null,0]
[null,null,null,0]
[null,null,null,0]
[null,null,null,0]
[null,null,null,{"$f":"B398+C398","v":0}]
[null,null,null,0]
[null,null,null,0]
[null,null,null,0]
[null,null,null,0]
[null,null,null,0]
[null,null,null,0]
[null,null,null,0]
[null,null,null,0]
[null,null,null,0]
[null,null,null,0]
[null,null,null,0]
[null,null,null,0]
[null,null,null,0]
[null,null,null,0]
[null,null,null,0]
[null,null,null,0]
[null,null,null,0]
[null,null,null,0]
[null,null,null,0]
[null,null,null,0]
[null,null,null,0]
[null,null,null,0]
[null,null,null,0]
[null,null,null,0]
[null,null,null,0]
[null,null,null,0]
[null,null,null,0]
[null,null,null,0]
[null,null,null,0]
[null,null,null,0]
[null,null,null,0]
[null,null,null,0]
[null,null,null,0]
[null,null,null,0]
[null,null,null,0]
[null,null,null,0]
[null,null,null,0]
[null,null,null,0]
[null,null,null,0]
[null,null,null,0]
[null,null,null,0]
[null,null,null,0]
[null,null,null,0]
[null,null,null,0]
[null,null,null,0]
[null,null,null,0]
[null,null,null,0]
[null,null,null,0]
[null,null,null,0]
[null,null,null,0]
[null,null,null,0]
[null,null,null,0]
[null,null,null,0]
[null,null,null,0]
[null,null,null,0]
[null,null,null,0]
[null,null,null,0]
[null,null,null,0]
[null,null,null,0]
[null,null,null,0]
[null,null,null,0]
[null,null,null,0]
[null,null,null,0]
[null,null,null,{"$f":"B462+C462","v":0}]
[null,null,null,0]
[null,null,null,0]
[null,null,null,0]
[null,null,null,0]
[null,null,null,0]
[null,null,null,0]
[null,null,null,0]
[null,null,null,0]
[null,null,null,0]
[null,null,null,0]
[null,null,null,0]
[null,null,null,0]
[null,null,null,0]
[null,null,null,0]
[null,null,null,0]
[null,null,null,0]
[null,null,null,0]
[null,null,null,0]
[null,null,null,0]
[null,null,null,0]
[null,null,null,0]
[null,null,null,0]
[null,null,null,0]
[null,null,null,0]
[null,null,null,0]
[null,null,null,0]
[null,null,null,0]
[null,null,null,0]
[null,null,null,0]
[null,null,null,0]
[null,null,null,0]
[null,null,null,0]
[null,null,null,0]
[null,null,null,0]
[null,null,null,0]
[null,null,null,0]
[null,null,null,0]
[null,null,null,0]
[null,null,null,0]
[null,null,null,0]
[null,null,null,0]
[null,null,null,0]
[null,null,null,0]
[null,null,null,0]
[null,null,null,0]
[null,null,null,0]
[null,null,null,0]
[null,null,null,0]
[null,null,null,0]
[null,null,null,0]
[null,null,null,0]
[null,null,null,0]
[null,null,null,0]
[null,null,null,0]
[null,null,null,0]
[null,null,null,0]
[null,null,null,0]
[null,null,null,0]
[null,null,null,0]
[null,null,null,0]
[null,null,null,0]
[null,null,null,0]
[null,null,null,0]
[null,null,null,{"$f":"B526+C526","v":0}]
[null,null,null,0]
[null,null,null,0]
[null,null,null,0]
[null,null,null,0]
[null,null,null,0]
[null,null,null,0]
[null,null,null,0]
[null,null,null,0]
[null,null,null,0]
[null,null,null,0]
[null,null,null,0]
[null,null,null,0]
[null,null,null,0]
[null,null,null,0]
[null,null,null,0]
[null,null,null,0]
[null,null,null,0]
[null,null,null,0]
[null,null,null,0]
[null,null,null,0]
[null,null,null,0]
[null,null,null,0]
[null,null,null,0]
[null,null,null,0]
[null,null,null,0]
[null,null,null,0]
[null,null,null,0]
[null,null,null,0]
[null,null,null,0]
[null,null,null,0]
[null,null,null,0]
[null,null,null,0]
[null,null,null,0]
[null,null,null,0]
[null,null,null,0]
[null,null,null,0]
[null,null,null,0]
[null,null,null,0]
[null,null,null,0]
[null,null,null,0]
[null,null,null,0]
[null,null,null,0]
[null,null,null,0]
[null,null,null,0]
[null,null,null,0]
[null,null,null,0]
[null,null,null,0]
[null,null,null,0]
[null,null,null,0]
[null,null,null,0]
[null,null,null,0]
[null,null,null,0]
[null,null,null,0]
[null,null,null,0]
[null,null,null,0]
[null,null,null,0]
[null,null,null,0]
[null,null,null,0]
[null,null,null,0]
[null,null,null,0]
[null,null,null,0]
[null,null,null,0]
[null,null,null,0]
[null,null,null,{"$f":"B590+C590","v":0}]
[null,null,null,0]
[null,null,null,0]
[null,null,null,0]
[null,null,null,0]
[null,null,null,0]
[null,null,null,0]
[null,null,null,0]
[null,null,null,0]
[null,null,null,0]
[null,null,null,0]
[null,null,null,0]
[null,null,null,0]
[null,null,null,0]
[null,null,null,0]
[null,null,null,0]
[null,null,null,0]
[null,null,null,0]
[null,null,null,0]
[null,null,null,0]
[null,null,null,0]
[null,null,null,0]
[null,null,null,0]
[null,null,null,0]
[null,null,null,0]
[null,null,null,0]
[null,null,null,0]
[null,null,null,0]
[null,null,null,0]
[null,null,null,0]
[null,null,null,0]
[null,null,null,0]
[null,null,null,0]
[null,null,null,0]
[null,null,null,0]
[null,null,null,0]
[null,null,null,0]
[null,null,null,0]
[null,null,null,0]
[null,null,null,0]
[null,null,null,0]
[null,null,null,0]
[null,null,null,0]
[null,null,null,0]
[null,null,null,0]
[null,null,null,0]
[null,null,null,0]
[null,null,null,0]
[null,null,null,0]
[null,null,null,0]
[null,null,null,0]
[null,null,null,0]
[null,null,null,0]
[null,null,null,0]
[null,null,null,0]
[null,null,null,0]
[null,null,null,0]
[null,null,null,0]
[null,null,null,0]
[null,null,null,0]
[null,null,null,0]
[null,null,null,0]
[null,null,null,0]
[null,null,null,0]
[null,null,null,{"$f":"B654+C654","v":0}]
[null,null,null,0]
[null,null,null,0]
[null,null,null,0]
[null,null,null,0]
[null,null,null,0]
[null,null,null,0]
[null,null,null,0]
[null,null,null,0]
[null,null,null,0]
[null,null,null,0]
[null,null,null,0]
[null,null,null,0]
[null,null,null,0]
[null,null,null,0]
[null,null,null,0]
[null,null,null,0]
[null,null,null,0]
[null,null,null,0]
[null,null,null,0]
[null,null,null,0]
[null,null,null,0]
[null,null,null,0]
[null,null,null,0]
[null,null,null,0]
[null,null,null,0]
[null,null,null,0]
[null,null,null,0]
[null,null,null,0]
[null,null,null,0]
[null,null,null,0]
[null,null,null,0]
[null,null,null,0]
[null,null,null,0]
[null,null,null,0]
[null,null,null,0]
[null,null,null,0]
[null,null,null,0]
[null,null,null,0]
[null,null,null,0]
[null,null,null,0]
[null,null,null,0]
[null,null,null,0]
[null,null,null,0]
[null,null,null,0]
[null,null,null,0]
[null,null,null,0]
[null,null,null,0]
[null,null,null,0]
[null,null,null,0]
[null,null,null,0]
[null,null,null,0]
[null,null,null,0]
[null,null,null,0]
[null,null,null,0]
[null,null,null,0]
[null,null,null,0]
[null,null,null,0]
[null,null,null,0]
[null,null,null,0]
[null,null,null,0]
[null,null,null,0]
[null,null,null,0]
[null,null,null,0]
[null,null,null,{"$f":"B718+C718","v":0}]
[null,null,null,0]
[null,null,null,0]
[null,null,null,0]
[null,null,null,0]
[null,null,null,0]
[null,null,null,0]
[null,null,null,0]
[null,null,null,0]
[null,null,null,0]
[null,null,null,0]
[null,null,null,0]
[null,null,null,0]
[null,null,null,0]
[null,null,null,0]
[null,null,null,0]
[null,null,null,0]
[null,null,null,0]
[null,null,null,0]
[null,null,null,0]
[null,null,null,0]
[null,null,null,0]
[null,null,null,0]
[null,null,null,0]
[null,null,null,0]
[null,null,null,0]
[null,null,null,0]
[null,null,null,0]
[null,null,null,0]
[null,null,null,0]
[null,null,null,0]
[null,null,null,0]
[null,null,null,0]
[null,null,null,0]
[null,null,null,0]
[null,null,null,0]
[null,null,null,0]
[null,null,null,0]
[null,null,null,0]
[null,null,null,0]
[null,null,null,0]
[null,null,null,0]
[null,null,null,0]
[null,null,null,0]
[null,null,null,0]
[null,null,null,0]
[null,null,null,0]
[null,null,null,0]
[null,null,null,0]
[null,null,null,0]
[null,null,null,0]
[null,null,null,0]
[null,null,null,0]
[null,null,null,0]
[null,null,null,0]
[null,null,null,0]
[null,null,null,0]
[null,null,null,0]
[null,null,null,0]
[null,null,null,0]
[null,null,null,0]
[null,null,null,0]
[null,null,null,0]
[null,null,null,0]
[null,null,null,{"$f":"B782+C782","v":0}]
[null,null,null,0]
[null,null,null,0]
[null,null,null,0]
[null,null,null,0]
[null,null,null,0]
[null,null,null,0]
[null,null,null,0]
[null,null,null,0]
[null,null,null,0]
[null,null,null,0]
[null,null,null,0]
[null,null,null,0]
[null,null,null,0]
[null,null,null,0]
[null,null,null,0]
[null,null,null,0]
[null,null,null,0]
[null,null,null,0]
[null,null,null,0]
[null,null,null,0]
[null,null,null,0]
[null,null,null,0]
[null,null,null,0]
[null,null,null,0]
[null,null,null,0]
[null,null,null,0]
[null,null,null,0]
[null,null,null,0]
[null,null,null,0]
[null,null,null,0]
[null,null,null,0]
[null,null,null,0]
[null,null,null,0]
[null,null,null,0]
[null,null,null,0]
[null,null,null,0]
[null,null,null,0]
[null,null,null,0]
[null,null,null,0]
[null,null,null,0]
[null,null,null,0]
[null,null,null,0]
[null,null,null,0]
[null,null,null,0]
[null,null,null,0]
[null,null,null,0]
[null,null,null,0]
[null,null,null,0]
[null,null,null,0]
[null,null,null,0]
[null,null,null,0]
[null,null,null,0]
[null,null,null,0]
[null,null,null,0]
[null,null,null,0]
[null,null,null,0]
[null,null,null,0]
[null,null,null,0]
[null,null,null,0]
[null,null,null,0]
[null,null,null,0]
[null,null,null,0]
[null,null,null,0]
[null,null,null,{"$f":"B846+C846","v":0}]
[null,null,null,0]
[null,null,null,0]
[null,null,null,0]
[null,null,null,0]
[null,null,null,0]
[null,null,null,0]
[null,null,null,0]
[null,null,null,0]
[null,null,null,0]
[null,null,null,0]
[null,null,null,0]
[null,null,null,0]
[null,null,null,0]
[null,null,null,0]
[null,null,null,0]
[null,null,null,0]
[null,null,null,0]
[null,null,null,0]
[null,null,null,0]
[null,null,null,0]
[null,null,null,0]
[null,null,null,0]
[null,null,null,0]
[null,null,null,0]
[null,null,null,0]
[null,null,null,0]
[null,null,null,0]
[null,null,null,0]
[null,null,null,0]
[null,null,null,0]
[null,null,null,0]
[null,null,null,0]
[null,null,null,0]
[null,null,null,0]
[null,null,null,0]
[null,null,null,0]
[null,null,null,0]
[null,null,null,0]
[null,null,null,0]
[null,null,null,0]
[null,null,null,0]
[null,null,null,0]
[null,null,null,0]
[null,null,null,0]
[null,null,null,0]
[null,null,null,0]
[null,null,null,0]
[null,null,null,0]
[null,null,null,0]
[null,null,null,0]
[null,null,null,0]
[null,null,null,0]
[null,null,null,0]
[null,null,null,0]
[null,null,null,0]
[null,null,null,0]
[null,null,null,0]
[null,null,null,0]
[null,null,null,0]
[null,null,null,0]
[null,null,null,0]
[null,null,null,0]
[null,null,null,0]
[null,null,null,{"$f":"B910+C910","v":0}]
[null,null,null,0]
[null,null,null,0]
[null,null,null,0]
[null,null,null,0]
[null,null,null,0]
[null,null,null,0]
[null,null,null,0]
[null,null,null,0]
[null,null,null,0]
[null,null,null,0]
[null,null,null,0]
[null,null,null,0]
[null,null,null,0]
[null,null,null,0]
[null,null,null,0]
[null,null,null,0]
[null,null,null,0]
[null,null,null,0]
[null,null,null,0]
[null,null,null,0]
[null,null,null,0]
[null,null,null,0]
[null,null,null,0]
[null,null,null,0]
[null,null,null,0]
[null,null,null,0]
[null,null,null,0]
[null,null,null,0]
[null,null,null,0]
[null,null,null,0]
[null,null,null,0]
[null,null,null,0]
[null,null,null,0]
[null,null,null,0]
[null,null,null,0]
[null,null,null,0]
[null,null,null,0]
[null,null,null,0]
[null,null,null,0]
[null,null,null,0]
[null,null,null,0]
[null,null,null,0]
[null,null,null,0]
[null,null,null,0]
[null,null,null,0]
[null,null,null,0]
[null,null,null,0]
[null,null,null,0]
[null,null,null,0]
[null,null,null,0]
[null,null,null,0]
[null,null,null,0]
[null,null,null,0]
[null,null,null,0]
[null,null,null,0]
[null,null,null,0]
[null,null,null,0]
[null,null,null,0]
[null,null,null,0]
[null,null,null,0]
[null,null,null,0]
[null,null,null,0]
[null,null,null,0]
[null,null,null,{"$f":"B974+C974","v":0}]
[null,null,null,0]
[null,null,null,0]
[null,null,null,0]
[null,null,null,0]
[null,null,null,0]
[null,null,null,0]
[null,null,null,0]
[null,null,null,0]
[null,null,null,0]
[null,null,null,0]
[null,null,null,0]
[null,null,null,0]
[null,null,null,0]
[null,null,null,0]
[null,null,null,0]
[null,null,null,0]
[null,null,null,0]
[null,null,null,0]
[null,null,null,0]
[null,null,null,0]
[null,null,null,0]
[null,null,null,0]
[null,null,null,0]
[null,null,null,0]
[null,null,null,0]
[null,null,null,0]
[null,null,null,0]
[null,null,null,0]
[null,null,null,0]
[null,null,null,0]
[null,null,null,0]
[null,null,null,0]
[null,null,null,0]
[null,null,null,0]
[null,null,null,0]
[null,null,null,0]
[null,null,null,0]
[null,null,null,0]
[null,null,null,0]
[null,null,null,0]
[null,null,null,0]
[null,null,null,0]
[null,null,null,0]
[null,null,null,0]
[null,null,null,0]
[null,null,null,0]
[null,null,null,0]
[null,null,null,0]
[null,null,null,0]
[null,null,null,0]
[null,null,null,0]
[null,null,null,0]
[null,null,null,0]
[null,null,null,0]
[null,null,null,0]
[null,null,null,0]
[null,null,null,0]
[null,null,null,0]
[null,null,null,0]
[null,null,null,0]
[null,null,null,0]
[null,null,null,0]
[null,null,null,0]
[null,null,null,{"$f":"B1038+C1038","v":0}]
[null,null,null,0]
[null,null,null,0]
[null,null,null,0]
[null,null,null,0]
[null,null,null,0]
[null,null,null,0]
[null,null,null,0]
[null,null,null,0]
[null,null,null,0]
[null,null,null,0]
[null,null,null,0]
[null,null,null,0]
[null,null,null,0]
[null,null,null,0]
[null,null,null,0]
[null,null,null,0]
[null,null,null,0]
[null,null,null,0]
[null,null,null,0]
[null,null,null,0]
[null,null,null,0]
[null,null,null,0]
[null,null,null,0]
[null,null,null,0]
[null,null,null,0]
[null,null,null,0]
[null,null,null,0]
[null,null,null,0]
[null,null,null,0]
[null,null,null,0]
[null,null,null,0]
[null,null,null,0]
[null,null,null,0]
[null,null,null,0]
[null,null,null,0]
[null,null,null,0]
[null,null,null,0]
[null,null,null,0]
[null,null,null,0]
[null,null,null,0]
[null,null,null,0]
[null,null,null,0]
[null,null,null,0]
[null,null,null,0]
[null,null,null,0]
[null,null,null,0]
[null,null,null,0]
[null,null,null,0]
[null,null,null,0]
[null,null,null,0]
[null,null,null,0]
[null,null,null,0]
[null,null,null,0]
[null,null,null,0]
[null,null,null,0]
[null,null,null,0]
[null,null,null,0]
[null,null,null,0]
[null,null,null,0]
[null,null,null,0]
[null,null,null,0]
[null,null,null,0]
[null,null,null,0]
[null,null,null,{"$f":"B1102+C1102","v":0}]
[null,null,null,0]
[null,null,null,0]
[null,null,null,0]
[null,null,null,0]
[null,null,null,0]
[null,null,null,0]
[null,null,null,0]
[null,null,null,0]
[null,null,null,0]
[null,null,null,0]
[null,null,null,0]
[null,null,null,0]
[null,null,null,0]
[null,null,null,0]
[null,null,null,0]
[null,null,null,0]
[null,null,null,0]
[null,null,null,0]
[null,null,null,0]
[null,null,null,0]
[null,null,null,0]
[null,null,null,0]
[null,null,null,0]
[null,null,null,0]
[null,null,null,0]
[null,null,null,0]
[null,null,null,0]
[null,null,null,0]
[null,null,null,0]
[null,null,null,0]
[null,null,null,0]
[null,null,null,0]
[null,null,null,0]
[null,null,null,0]
[null,null,null,0]
[null,null,null,0]
[null,null,null,0]
[null,null,null,0]
[null,null,null,0]
[null,null,null,0]
[null,null,null,0]
[null,null,null,0]
[null,null,null,0]
[null,null,null,0]
[null,null,null,0]
[null,null,null,0]
[null,null,null,0]
[null,null,null,0]
[null,null,null,0]
[null,null,null,0]
[null,null,null,0]
[null,null,null,0]
[null,null,null,0]
[null,null,null,0]
[null,null,null,0]
[null,null,null,0]
[null,null,null,0]
[null,null,null,0]
[null,null,null,0]
[null,null,null,0]
[null,null,null,0]
[null,null,null,0]
[null,null,null,0]
[null,null,null,{"$f":"B1166+C1166","v":0}]
[null,null,null,0]
[null,null,null,0]
[null,null,null,0]
[null,null,null,0]
[null,null,null,0]
[null,null,null,0]
[null,null,null,0]
[null,null,null,0]
[null,null,null,0]
[null,null,null,0]
[null,null,null,0]
[null,null,null,0]
[null,null,null,0]
[null,null,null,0]
[null,null,null,0]
[null,null,null,0]
[null,null,null,0]
[null,null,null,0]
[null,null,null,0]
[null,null,null,0]
[null,null,null,0]
[null,null,null,0]
[null,null,null,0]
[null,null,null,0]
[null,null,null,0]
[null,null,null,0]
[null,null,null,0]
[null,null,null,0]
[null,null,null,0]
[null,null,null,0]
[null,null,null,0]
[null,null,null,0]
[null,null,null,0]
[null,null,null,0]
[null,null,null,0]
[null,null,null,0]
[null,null,null,0]
[null,null,null,0]
[null,null,null,0]
[null,null,null,0]
[null,null,null,0]
[null,null,null,0]
[null,null,null,0]
[null,null,null,0]
[null,null,null,0]
[null,null,null,0]
[null,null,null,0]
[null,null,null,0]
[null,null,null,0]
[null,null,null,0]
[null,null,null,0]
[null,null,null,0]
[null,null,null,0]
[null,null,null,0]
[null,null,null,0]
[null,null,null,0]
[null,null,null,0]
[null,null,null,0]
[null,null,null,0]
[null,null,null,0]
[null,null,null,0]
[null,null,null,0]
[null,null,null,0]
[null,null,null,{"$f":"B1230+C1230","v":0}]
[null,null,null,0]
[null,null,null,0]
[null,null,null,0]
[null,null,null,0]
[null,null,null,0]
[null,null,null,0]
[null,null,null,0]
[null,null,null,0]
[null,null,null,0]
[null,null,null,0]
[null,null,null,0]
[null,null,null,0]
[null,null,null,0]
[null,null,null,0]
[null,null,null,0]
[null,null,null,0]
[null,null,null,0]
[null,null,null,0]
[null,null,null,0]
[null,null,null,0]
[null,null,null,0]
[null,null,null,0]
[null,null,null,0]
[null,null,null,0]
[null,null,null,0]
[null,null,null,0]
[null,null,null,0]
[null,null,null,0]
[null,null,null,0]
[null,null,null,0]
[null,null,null,0]
[null,null,null,0]
[null,null,null,0]
[null,null,null,0]
[null,null,null,0]
[null,null,null,0]
[null,null,null,0]
[null,null,null,0]
[null,null,null,0]
[null,null,null,0]
[null,null,null,0]
[null,null,null,0]
[null,null,null,0]
[null,null,null,0]
[null,null,null,0]
[null,null,null,0]
[null,null,null,0]
[null,null,null,0]
[null,null,null,0]
[null,null,null,0]
[null,null,null,0]
[null,null,null,0]
[null,null,null,0]
[null,null,null,0]
[null,null,null,0]
[null,null,null,0]
[null,null,null,0]
[null,null,null,0]
[null,null,null,0]
[null,null,null,0]
[null,null,null,0]
[null,null,null,0]
[null,null,null,0]
[null,null,null,{"$f":"B1294+C1294","v":0}]
[null,null,null,0]
[null,null,null,0]
[null,null,null,0]
[null,null,null,0]
[null,null,null,0]
[null,null,null,0]
[null,null,null,0]
[null,null,null,0]
[null,null,null,0]
[null,null,null,0]
[null,null,null,0]
[null,null,null,0]
[null,null,null,0]
[null,null,null,0]
[null,null,null,0]
[null,null,null,0]
[null,null,null,0]
[null,null,null,0]
[null,null,null,0]
[null,null,null,0]
[null,null,null,0]
[null,null,null,0]
[null,null,null,0]
[null,null,null,0]
[null,null,null,0]
[null,null,null,0]
[null,null,null,0]
[null,null,null,0]
[null,null,null,0]
[null,null,null,0]
[null,null,null,0]
[null,null,null,0]
[null,null,null,0]
[null,null,null,0]
[null,null,null,0]
[null,null,null,0]
[null,null,null,0]
[null,null,null,0]
[null,null,null,0]
[null,null,null,0]
[null,null,null,0]
[null,null,null,0]
[null,null,null,0]
[null,null,null,0]
[null,null,null,0]
[null,null,null,0]
[null,null,null,0]
[null,null,null,0]
[null,null,null,0]
[null,null,null,0]
[null,null,null,0]
[null,null,null,0]
[null,null,null,0]
[null,null,null,0]
[null,null,null,0]
[null,null,null,0]
[null,null,null,0]
[null,null,null,0]
[null,null,null,0]
[null,null,null,0]
[null,null,null,0]
[null,null,null,0]
[null,null,null,0]
[null,null,null,{"$f":"B1358+C1358","v":0}]
[null,null,null,0]
[null,null,null,0]
[null,null,null,0]
[null,null,null,0]
[null,null,null,0]
[null,null,null,0]
[null,null,null,0]
[null,null,null,0]
[null,null,null,0]
[null,null,null,0]
[null,null,null,0]
[null,null,null,0]
[null,null,null,0]
[null,null,null,0]
[null,null,null,0]
[null,null,null,0]
[null,null,null,0]
[null,null,null,0]
[null,null,null,0]
[null,null,null,0]
[null,null,null,0]
[null,null,null,0]
[null,null,null,0]
[null,null,null,0]
[null,null,null,0]
[null,null,null,0]
[null,null,null,0]
[null,null,null,0]
[null,null,null,0]
[null,null,null,0]
[null,null,null,0]
[null,null,null,0]
[null,null,null,0]
[null,null,null,0]
[null,null,null,0]
[null,null,null,0]
[null,null,null,0]
[null,null,null,0]
[null,null,null,0]
[null,null,null,0]
[null,null,null,0]
[null,null,null,0]
[null,null,null,0]
[null,null,null,0]
[null,null,null,0]
[null,null,null,0]
[null,null,null,0]
[null,null,null,0]
[null,null,null,0]
[null,null,null,0]
[null,null,null,0]
[null,null,null,0]
[null,null,null,0]
[null,null,null,0]
[null,null,null,0]
[null,null,null,0]
[null,null,null,0]
[null,null,null,0]
[null,null,null,0]
[null,null,null,0]
[null,null,null,0]
[null,null,null,0]
[null,null,null,0]
[null,null,null,{"$f":"B1422+C1422","v":0}]
[null,null,null,0]
[null,null,null,0]
[null,null,null,0]
[null,null,null,0]
[null,null,null,0]
[null,null,null,0]
[null,null,null,0]
[null,null,null,0]
[null,null,null,0]
[null,null,null,0]
[null,null,null,0]
[null,null,null,0]
[null,null,null,0]
[null,null,null,0]
[null,null,null,0]
[null,null,null,0]
[null,null,null,0]
[null,null,null,0]
[null,null,null,0]
[null,null,null,0]
[null,null,null,0]
[null,null,null,0]
[null,null,null,0]
[null,null,null,0]
[null,null,null,0]
[null,null,null,0]
[null,null,null,0]
[null,null,null,0]
[null,null,null,0]
[null,null,null,0]
[null,null,null,0]
[null,null,null,0]
[null,null,null,0]
[null,null,null,0]
[null,null,null,0]
[null,null,null,0]
[null,null,null,0]
[null,null,null,0]
[null,null,null,0]
[null,null,null,0]
[null,null,null,0]
[null,null,null,0]
[null,null,null,0]
[null,null,null,0]
[null,null,null,0]
[null,null,null,0]
[null,null,null,0]
[null,null,null,0]
[null,null,null,0]
[null,null,null,0]
[null,null,null,0]
[null,null,null,0]
[null,null,null,0]
[null,null,null,0]
[null,null,null,0]
[null,null,null,0]
[null,null,null,0]
[null,null,null,0]
[null,null,null,0]
[null,null,null,0]
[null,null,null,0]
[null,null,null,0]
[null,null,null,0]
[null,null,null,{"$f":"B1486+C1486","v":0}]
[null,null,null,0]
[null,null,null,0]
[null,null,null,0]
[null,null,null,0]
[null,null,null,0]
[null,null,null,0]
[null,null,null,0]
[null,null,null,0]
[null,null,null,0]
[null,null,null,0]
[null,null,null,0]
[null,null,null,0]
[null,null,null,0]
[null,null,null,0]
[null,null,null,0]
[null,null,null,0]
[null,null,null,0]
[null,null,null,0]
[null,null,null,0]
[null,null,null,0]
[null,null,null,0]
[null,null,null,0]
[null,null,null,0]
[null,null,null,0]
[null,null,null,0]
[null,null,null,0]
[null,null,null,0]
[null,null,null,0]
[null,null,null,0]
[null,null,null,0]
[null,null,null,0]
[null,null,null,0]
[null,null,null,0]
[null,null,null,0]
[null,null,null,0]
[null,null,null,0]
[null,null,null,0]
[null,null,null,0]
[null,null,null,0]
[null,null,null,0]
[null,null,null,0]
[null,null,null,0]
[null,null,null,0]
[null,null,null,0]
[null,null,null,0]
[null,null,null,0]
[null,null,null,0]
[null,null,null,0]
[null,null,null,0]
[null,null,null,0]
[null,null,null,0]
[null,null,null,0]
[null,null,null,0]
[null,null,null,0]
[null,null,null,0]
[null,null,null,0]
[null,null,null,0]
[null,null,null,0]
[null,null,null,0]
[null,null,null,0]
[null,null,null,0]
[null,null,null,0]
[null,null,null,0]
[null,null,null,{"$f":"B1550+C1550","v":0}]
[null,null,null,0]
[null,null,null,0]
[null,null,null,0]
[null,null,null,0]
[null,null,null,0]
[null,null,null,0]
[null,null,null,0]
[null,null,null,0]
[null,null,null,0]
[null,null,null,0]
[null,null,null,0]
[null,null,null,0]
[null,null,null,0]
[null,null,null,0]
[null,null,null,0]
[null,null,null,0]
[null,null,null,0]
[null,null,null,0]
[null,null,null,0]
[null,null,null,0]
[null,null,null,0]
[null,null,null,0]
[null,null,null,0]
[null,null,null,0]
[null,null,null,0]
[null,null,null,0]
[null,null,null,0]
[null,null,null,0]
[null,null,null,0]
[null,null,null,0]
[null,null,null,0]
[null,null,null,0]
[null,null,null,0]
[null,null,null,0]
[null,null,null,0]
[null,null,null,0]
[null,null,null,0]
[null,null,null,0]
[null,null,null,0]
[null,null,null,0]
[null,null,null,0]
[null,null,null,0]
[null,null,null,0]
[null,null,null,0]
[null,null,null,0]
[null,null,null,0]
[null,null,null,0]
[null,null,null,0]
[null,null,null,0]
[null,null,null,0]
[null,null,null,0]
[null,null,null,0]
[null,null,null,0]
[null,null,null,0]
[null,null,null,0]
[null,null,null,0]
[null,null,null,0]
[null,null,null,0]
[null,null,null,0]
[null,null,null,0]
[null,null,null,0]
[null,null,null,0]
[null,null,null,0]
[null,null,null,{"$f":"B1614+C1614","v":0}]
[null,null,null,0]
[null,null,null,0]
[null,null,null,0]
[null,null,null,0]
[null,null,null,0]
[null,null,null,0]
[null,null,null,0]
[null,null,null,0]
[null,null,null,0]
[null,null,null,0]
[null,null,null,0]
[null,null,null,0]
[null,null,null,0]
[null,null,null,0]
[null,null,null,0]
[null,null,null,0]
[null,null,null,0]
[null,null,null,0]
[null,null,null,0]
[null,null,null,0]
[null,null,null,0]
[null,null,null,0]
[null,null,null,0]
[null,null,null,0]
[null,null,null,0]
[null,null,null,0]
[null,null,null,0]
[null,null,null,0]
[null,null,null,0]
[null,null,null,0]
[null,null,null,0]
[null,null,null,0]
[null,null,null,0]
[null,null,null,0]
[null,null,null,0]
[null,null,null,0]
[null,null,null,0]
[null,null,null,0]
[null,null,null,0]
[null,null,null,0]
[null,null,null,0]
[null,null,null,0]
[null,null,null,0]
[null,null,null,0]
[null,null,null,0]
[null,null,null,0]
[null,null,null,0]
[null,null,null,0]
[null,null,null,0]
[null,null,null,0]
[null,null,null,0]
[null,null,null,0]
[null,null,null,0]
[null,null,null,0]
[null,null,null,0]
[null,null,null,0]
[null,null,null,0]
[null,null,null,0]
[null,null,null,0]
[null,null,null,0]
[null,null,null,0]
[null,null,null,0]
[null,null,null,0]
[null,null,null,{"$f":"B1678+C1678","v":0}]
[null,null,null,0]
[null,null,null,0]
[null,null,null,0]
[null,null,null,0]
[null,null,null,0]
[null,null,null,0]
[null,null,null,0]
[null,null,null,0]
[null,null,null,0]
[null,null,null,0]
[null,null,null,0]
[null,null,null,0]
[null,null,null,0]
[null,null,null,0]
[null,null,null,0]
[null,null,null,0]
[null,null,null,0]
[null,null,null,0]
[null,null,null,0]
[null,null,null,0]
[null,null,null,0]
[null,null,null,0]
[null,null,null,0]
[null,null,null,0]
[null,null,null,0]
[null,null,null,0]
[null,null,null,0]
[null,null,null,0]
[null,null,null,0]
[null,null,null,0]
[null,null,null,0]
[null,null,null,0]
[null,null,null,0]
[null,null,null,0]
[null,null,null,0]
[null,null,null,0]
[null,null,null,0]
[null,null,null,0]
[null,null,null,0]
[null,null,null,0]
[null,null,null,0]
[null,null,null,0]
[null,null,null,0]
[null,null,null,0]
[null,null,null,0]
[null,null,null,0]
[null,null,null,0]
[null,null,null,0]
[null,null,null,0]
[null,null,null,0]
[null,null,null,0]
[null,null,null,0]
[null,null,null,0]
[null,null,null,0]
[null,null,null,0]
[null,null,null,0]
[null,null,null,0]
[null,null,null,0]
[null,null,null,0]
[null,null,null,0]
[null,null,null,0]
[null,null,null,0]
[null,null,null,0]
[null,null,null,{"$f":"B1742+C1742","v":0}]
[null,null,null,0]
[null,null,null,0]
[null,null,null,0]
[null,null,null,0]
[null,null,null,0]
[null,null,null,0]
[null,null,null,0]
[null,null,null,0]
[null,null,null,0]
[null,null,null,0]
[null,null,null,0]
[null,null,null,0]
[null,null,null,0]
[null,null,null,0]
[null,null,null,0]
[null,null,null,0]
[null,null,null,0]
[null,null,null,0]
[null,null,null,0]
[null,null,null,0]
[null,null,null,0]
[null,null,null,0]
[null,null,null,0]
[null,null,null,0]
[null,null,null,0]
[null,null,null,0]
[null,null,null,0]
[null,null,null,0]
[null,null,null,0]
[null,null,null,0]
[null,null,null,0]
[null,null,null,0]
[null,null,null,0]
[null,null,null,0]
[null,null,null,0]
[null,null,null,0]
[null,null,null,0]
[null,null,null,0]
[null,null,null,0]
[null,null,null,0]
[null,null,null,0]
[null,null,null,0]
[null,null,null,0]
[null,null,null,0]
[null,null,null,0]
[null,null,null,0]
[null,null,null,0]
[null,null,null,0]
[null,null,null,0]
[null,null,null,0]
[null,null,null,0]
[null,null,null,0]
[null,null,null,0]
[null,null,null,0]
[null,null,null,0]
[null,null,null,0]
[null,null,null,0]
[null,null,null,0]
[null,null,null,0]
[null,null,null,0]
[null,null,null,0]
[null,null,null,0]
[null,null,null,0]
[null,null,null,{"$f":"B1806+C1806","v":0}]
[null,null,null,0]
[null,null,null,0]
[null,null,null,0]
[null,null,null,0]
[null,null,null,0]
[null,null,null,0]
[null,null,null,0]
[null,null,null,0]
[null,null,null,0]
[null,null,null,0]
[null,null,null,0]
[null,null,null,0]
[null,null,null,0]
[null,null,null,0]
[null,null,null,0]
[null,null,null,0]
[null,null,null,0]
[null,null,null,0]
[null,null,null,0]
[null,null,null,0]
[null,null,null,0]
[null,null,null,0]
[null,null,null,0]
[null,null,null,0]
[null,null,null,0]
[null,null,null,0]
[null,null,null,0]
[null,null,null,0]
[null,null,null,0]
[null,null,null,0]
[null,null,null,0]
[null,null,null,0]
[null,null,null,0]
[null,null,null,0]
[null,null,null,0]
[null,null,null,0]
[null,null,null,0]
[null,null,null,0]
[null,null,null,0]
[null,null,null,0]
[null,null,null,0]
[null,null,null,0]
[null,null,null,0]
[null,null,null,0]
[null,null,null,0]
[null,null,null,0]
[null,null,null,0]
[null,null,null,0]
[null,null,null,0]
[null,null,null,0]
[null,null,null,0]
[null,null,null,0]
[null,null,null,0]
[null,null,null,0]
[null,null,null,0]
[null,null,null,0]
[null,null,null,0]
[null,null,null,0]
[null,null,null,0]
[null,null,null,0]
[null,null,null,0]
[null,null,null,0]
[null,null,null,0]
[null,null,null,{"$f":"B1870+C1870","v":0}]
[null,null,null,0]
[null,null,null,0]
[null,null,null,0]
[null,null,null,0]
[null,null,null,0]
[null,null,null,0]
[null,null,null,0]
[null,null,null,0]
[null,null,null,0]
[null,null,null,0]
[null,null,null,0]
[null,null,null,0]
[null,null,null,0]
[null,null,null,0]
[null,null,null,0]
[null,null,null,0]
[null,null,null,0]
[null,null,null,0]
[null,null,null,0]
[null,null,null,0]
[null,null,null,0]
[null,null,null,0]
[null,null,null,0]
[null,null,null,0]
[null,null,null,0]
[null,null,null,0]
[null,null,null,0]
[null,null,null,0]
[null,null,null,0]
[null,null,null,0]
[null,null,null,0]
[null,null,null,0]
[null,null,null,0]
[null,null,null,0]
[null,null,null,0]
[null,null,null,0]
[null,null,null,0]
[null,null,null,0]
[null,null,null,0]
[null,null,null,0]
[null,null,null,0]
[null,null,null,0]
[null,null,null,0]
[null,null,null,0]
[null,null,null,0]
[null,null,null,0]
[null,null,null,0]
[null,null,null,0]
[null,null,null,0]
[null,null,null,0]
[null,null,null,0]
[null,null,null,0]
[null,null,null,0]
[null,null,null,0]
[null,null,null,0]
[null,null,null,0]
[null,null,null,0]
[null,null,null,0]
[null,null,null,0]
[null,null,null,0]
[null,null,null,0]
[null,null,null,0]
[null,null,null,0]
[null,null,null,{"$f":"B1934+C1934","v":0}]
[null,null,null,0]
[null,null,null,0]
[null,null,null,0]
[null,null,null,0]
[null,null,null,0]
[null,null,null,0]
[null,null,null,0]
[null,null,null,0]
[null,null,null,0]
[null,null,null,0]
[null,null,null,0]
[null,null,null,0]
[null,null,null,0]
[null,null,null,0]
[null,null,null,0]
[null,null,null,0]
[null,null,null,0]
[null,null,null,0]
[null,null,null,0]
[null,null,null,0]
[null,null,null,0]
[null,null,null,0]
[null,null,null,0]
[null,null,null,0]
[null,null,null,0]
[null,null,null,0]
[null,null,null,0]
[null,null,null,0]
[null,null,null,0]
[null,null,null,0]
[null,null,null,0]
[null,null,null,0]
[null,null,null,0]
[null,null,null,0]
[null,null,null,0]
[null,null,null,0]
[null,null,null,0]
[null,null,null,0]
[null,null,null,0]
[null,null,null,0]
[null,null,null,0]
[null,null,null,0]
[null,null,null,0]
[null,null,null,0]
[null,null,null,0]
[null,null,null,0]
[null,null,null,0]
[null,null,null,0]
[null,null,null,0]
[null,null,null,0]
[null,null,null,0]
[null,null,null,0]
[null,null,null,0]
[null,null,null,0]
[null,null,null,0]
[null,null,null,0]
[null,null,null,0]
[null,null,null,0]
[null,null,null,0]
[null,null,null,0]
[null,null,null,0]
[null,null,null,0]
[null,null,null,0]
[null,null,null,{"$f":"B1998+C1998","v":0}]
[null,null,null,0]
[null,null,null,0]
[null,null,null,0]
[null,null,null,0]
[null,null,null,0]
[null,null,null,0]
[null,null,null,0]
[null,null,null,0]
[null,null,null,0]
[null,null,null,0]
[null,null,null,0]
[null,null,null,0]
[null,null,null,0]
[null,null,null,0]
[null,null,null,0]
[null,null,null,0]
[null,null,null,0]
[null,null,null,0]
[null,null,null,0]
[null,null,null,0]
[null,null,null,0]
[null,null,null,0]
[null,null,null,0]
[null,null,null,0]
[null,null,null,0]
[null,null,null,0]
[null,null,null,0]
[null,null,null,0]
[null,null,null,0]
[null,null,null,0]
[null,null,null,0]
[null,null,null,0]
[null,null,null,0]
[null,null,null,0]
[null,null,null,0]
[null,null,null,0]
[null,null,null,0]
[null,null,null,0]
[null,null,null,0]
[null,null,null,0]
[null,null,null,0]
[null,null,null,0]
[null,null,null,0]
[null,null,null,0]
[null,null,null,0]
[null,null,null,0]
[null,null,null,0]
[null,null,null,0]
[null,null,null,0]
[null,null,null,0]
[null,null,null,0]
[null,null,null,0]
[null,null,null,0]
[null,null,null,0]
[null,null,null,0]
[null,null,null,0]
[null,null,null,0]
[null,null,null,0]
[null,null,null,0]
[null,null,null,0]
[null,null,null,0]
[null,null,null,0]
[null,null,null,0]
[null,null,null,{"$f":"B2062+C2062","v":0}]
[null,null,null,0]
[null,null,null,0]
[null,null,null,0]
[null,null,null,0]
[null,null,null,0]
[null,null,null,0]
[null,null,null,0]
[null,null,null,0]
[null,null,null,0]
[null,null,null,0]
[null,null,null,0]
[null,null,null,0]
[null,null,null,0]
[null,null,null,0]
[null,null,null,0]
[null,null,null,0]
[null,null,null,0]
[null,null,null,0]
[null,null,null,0]
[null,null,null,0]
[null,null,null,0]
[null,null,null,0]
[null,null,null,0]
[null,null,null,0]
[null,null,null,0]
[null,null,null,0]
[null,null,null,0]
[null,null,null,0]
[null,null,null,0]
[null,null,null,0]
[null,null,null,0]
[null,null,null,0]
[null,null,null,0]
[null,null,null,0]
[null,null,null,0]
[null,null,null,0]
[null,null,null,0]
[null,null,null,0]
[null,null,null,0]
[null,null,null,0]
[null,null,null,0]
[null,null,null,0]
[null,null,null,0]
[null,null,null,0]
[null,null,null,0]
[null,null,null,0]
[null,null,null,0]
[null,null,null,0]
[null,null,null,0]
[null,null,null,0]
[null,null,null,0]
[null,null,null,0]
[null,null,null,0]
[null,null,null,0]
[null,null,null,0]
[null,null,null,0]
[null,null,null,0]
[null,null,null,0]
[null,null,null,0]
[null,null,null,0]
[null,null,null,0]
[null,null,null,0]
[null,null,null,0]
[null,null,null,{"$f":"B2126+C2126","v":0}]
[null,null,null,0]
[null,null,null,0]
[null,null,null,0]
[null,null,null,0]
[null,null,null,0]
[null,null,null,0]
[null,null,null,0]
[null,null,null,0]
[null,null,null,0]
[null,null,null,0]
[null,null,null,0]
[null,null,null,0]
[null,null,null,0]
[null,null,null,0]
[null,null,null,0]
[null,null,null,0]
[null,null,null,0]
[null,null,null,0]
[null,null,null,0]
[null,null,null,0]
[null,null,null,0]
[null,null,null,0]
[null,null,null,0]
[null,null,null,0]
[null,null,null,0]
[null,null,null,0]
[null,null,null,0]
[null,null,null,0]
[null,null,null,0]
[null,null,null,0]
[null,null,null,0]
[null,null,null,0]
[null,null,null,0]
[null,null,null,0]
[null,null,null,0]
[null,null,null,0]
[null,null,null,0]
[null,null,null,0]
[null,null,null,0]
[null,null,null,0]
[null,null,null,0]
[null,null,null,0]
[null,null,null,0]
[null,null,null,0]
[null,null,null,0]
[null,null,null,0]
[null,null,null,0]
[null,null,null,0]
[null,null,null,0]
[null,null,null,0]
[null,null,null,0]
[null,null,null,0]
[null,null,null,0]
[null,null,null,0]
[null,null,null,0]
[null,null,null,0]
[null,null,null,0]
[null,null,null,0]
[null,null,null,0]
[null,null,null,0]
[null,null,null,0]
[null,null,null,0]
[null,null,null,0]
[null,null,null,{"$f":"B2190+C2190","v":0}]
[null,null,null,0]
[null,null,null,0]
[null,null,null,0]
[null,null,null,0]
[null,null,null,0]
[null,null,null,0]
[null,null,null,0]
[null,null,null,0]
[null,null,null,0]
[null,null,null,0]
[null,null,null,0]
[null,null,null,0]
[null,null,null,0]
[null,null,null,0]
[null,null,null,0]
[null,null,null,0]
[null,null,null,0]
[null,null,null,0]
[null,null,null,0]
[null,null,null,0]
[null,null,null,0]
[null,null,null,0]
[null,null,null,0]

{"sheet":"30 Rolls","index":5,"n_rows":31,"n_cols":7,"rows_kept":31,"cut":false,"hidden":true,"merged":[]}
["Score on Dice 1","Score on Dice 2","Sum of Scores",null,"Total Score","Number of times"]
[{"$f":"ROUND(RAND()*5,0)+1","v":4},{"$f":"ROUND(RAND()*5,0)+1","v":1},{"$f":"A2+B2","v":5},null,1,0]
[{"$f":"ROUND(RAND()*5,0)+1","v":1},5,{"$f":"A3+B3","v":6},null,2,{"$f":"COUNTIF(C2:C31,2)","v":0}]
[3,5,8,null,3,{"$f":"COUNTIF(C2:C31,3)","v":2}]
[5,2,7,null,4,{"$f":"COUNTIF(C2:C31,4)","v":3},"Press F9 to roll the dice"]
[6,3,9,null,5,{"$f":"COUNTIF(C2:C31,5)","v":3}]
[2,2,4,null,6,{"$f":"COUNTIF(C2:C31,6)","v":8}]
[6,3,9,null,7,{"$f":"COUNTIF(C2:C31,7)","v":4}]
[5,5,10,null,8,{"$f":"COUNTIF(C2:C31,8)","v":3}]
[2,5,7,null,9,{"$f":"COUNTIF(C2:C31,9)","v":5}]
[3,1,4,null,10,{"$f":"COUNTIF(C2:C31,10)","v":2}]
[2,6,{"$f":"A12+B12","v":8},null,11,{"$f":"COUNTIF(C2:C31,11)","v":0}]
[3,6,{"$f":"A13+B13","v":9},null,12,{"$f":"COUNTIF(C2:C31,12)","v":0}]
[1,4,5,null,"Total number of rolls",{"$f":"SUM(F3:F13)","v":30}]
[5,4,9,null,1,0]
[5,3,8,null,2,0.83333333333333337]
[4,2,6,null,3,1.6666666666666667]
[4,2,6,null,4,2.5]
[2,4,6,null,5,3.3333333333333335]
[2,4,6,null,6,4.166666666666667]
[2,1,3,null,7,5]
[4,5,9,null,8,4.166666666666667]
[3,3,6,null,9,3.3333333333333335]
[5,5,10,null,10,2.5]
[1,2,3,null,11,1.6666666666666667]
[2,4,6,null,12,0.83333333333333337]
[5,2,7]
[2,5,7]
[3,3,6]
[3,2,5]
[1,3,4]

{"sheet":"100 Rolls","index":6,"n_rows":101,"n_cols":7,"rows_kept":101,"cut":false,"hidden":true,"merged":[]}
["Score on Dice 1","Score on Dice 2","Sum of Scores",null,"Total Score","Number of times"]
[{"$f":"ROUND(RAND()*5,0)+1","v":4},{"$f":"ROUND(RAND()*5,0)+1","v":6},{"$f":"A2+B2","v":10},null,1,0]
[{"$f":"ROUND(RAND()*5,0)+1","v":2},6,{"$f":"A3+B3","v":8},null,2,{"$f":"COUNTIF(C2:C501,2)","v":0}]
[5,6,11,null,3,{"$f":"COUNTIF(C2:C501,3)","v":3}]
[4,4,8,null,4,{"$f":"COUNTIF(C2:C501,4)","v":8},"Press F9 to roll the dice"]
[1,4,5,null,5,{"$f":"COUNTIF(C2:C501,5)","v":6}]
[3,5,8,null,6,{"$f":"COUNTIF(C2:C501,6)","v":17}]
[2,2,4,null,7,{"$f":"COUNTIF(C2:C501,7)","v":25}]
[5,6,11,null,8,{"$f":"COUNTIF(C2:C501,8)","v":15}]
[5,5,10,null,9,{"$f":"COUNTIF(C2:C501,9)","v":7}]
[5,3,8,null,10,{"$f":"COUNTIF(C2:C501,10)","v":13}]
[4,4,8,null,11,{"$f":"COUNTIF(C2:C501,11)","v":5}]
[3,4,7,null,12,{"$f":"COUNTIF(C2:C501,12)","v":1}]
[3,3,6,null,"Total number of rolls",{"$f":"SUM(F3:F13)","v":100}]
[1,5,6]
[4,2,6,null,2,2.7777777777777777]
[4,2,6,null,3,5.5555555555555554]
[5,6,11,null,4,8.3333333333333339]
[5,5,10,null,5,11.111111111111111]
[6,3,9,null,6,13.888888888888889]
[1,3,4,null,7,16.666666666666668]
[2,4,6,null,8,13.888888888888889]
[5,2,7,null,9,11.111111111111111]
[3,3,6,null,10,8.3333333333333339]
[4,1,5,null,11,5.5555555555555554]
[5,4,9,null,12,2.7777777777777777]
[2,5,7]
[3,3,6]
[4,5,9]
[3,4,7]
[3,5,8]
[2,5,7]
[3,1,4]
[4,2,6]
[5,6,11]
[4,3,7]
[6,4,10]
[2,4,6]
[4,2,6]
[6,2,8]
[1,3,4]
[2,1,3]
[3,5,8]
[5,2,7]
[4,2,6]
[4,4,8]
[5,5,10]
[5,5,10]
[1,3,4]
[6,5,11]
[4,2,6]
[2,1,3]
[4,3,7]
[4,3,7]
[2,4,6]
[6,6,12]
[5,3,8]
[1,6,7]
[1,2,3]
[3,2,5]
[4,6,10]
[2,4,6]
[1,6,7]
[5,3,8]
[2,3,5]
[3,4,7]
[{"$f":"ROUND(RAND()*5,0)+1","v":2},5,{"$f":"A67+B67","v":7}]
[4,4,8]
[1,6,7]
[5,2,7]
[3,5,8]
[1,6,7]
[5,5,10]
[3,4,7]
[4,3,7]
[3,4,7]
[3,6,9]
[4,3,7]
[3,3,6]
[2,5,7]
[3,1,4]
[3,6,9]
[4,4,8]
[4,1,5]
[3,4,7]
[3,1,4]
[5,2,7]
[3,5,8]
[4,2,6]
[2,2,4]
[2,5,7]
[5,5,10]
[5,4,9]
[5,5,10]
[4,2,6]
[3,2,5]
[6,3,9]
[3,4,7]
[4,6,10]
[5,5,10]
[4,6,10]

{"sheet":"1000 Rolls","index":7,"n_rows":1001,"n_cols":7,"rows_kept":1001,"cut":false,"hidden":true,"merged":[]}
["Score on Dice 1","Score on Dice 2","Sum of Scores",null,"Total Score","Number of times"]
[{"$f":"ROUND(RAND()*5,0)+1","v":5},{"$f":"ROUND(RAND()*5,0)+1","v":6},{"$f":"A2+B2","v":11},null,1,0]
[{"$f":"ROUND(RAND()*5,0)+1","v":4},5,{"$f":"A3+B3","v":9},null,2,{"$f":"COUNTIF(C2:C1001,2)","v":8}]
[3,2,5,null,3,{"$f":"COUNTIF(C2:C1001,3)","v":35}]
[5,3,8,null,4,{"$f":"COUNTIF(C2:C1001,4)","v":73},"                   Press F9 to roll the dice"]
[5,2,7,null,5,{"$f":"COUNTIF(C2:C1001,5)","v":123}]
[5,5,10,null,6,{"$f":"COUNTIF(C2:C1001,6)","v":152}]
[3,3,6,null,7,{"$f":"COUNTIF(C2:C1001,7)","v":179}]
[4,3,7,null,8,{"$f":"COUNTIF(C2:C1001,8)","v":172}]
[4,3,7,null,9,{"$f":"COUNTIF(C2:C1001,9)","v":121}]
[4,2,6,null,10,{"$f":"COUNTIF(C2:C1001,10)","v":80}]
[3,2,{"$f":"A12+B12","v":5},null,11,{"$f":"COUNTIF(C2:C1001,11)","v":46}]
[2,3,{"$f":"A13+B13","v":5},null,12,{"$f":"COUNTIF(C2:C1001,12)","v":11}]
[2,5,7]
[6,3,9]
[1,5,6]
[2,1,3]
[5,2,7]
[4,3,7]
[2,1,3]
[1,2,3]
[2,5,7]
[5,2,7]
[4,5,9]
[2,2,4,null,"Total number of rolls",{"$f":"SUM(F3:F13)","v":1000}]
[4,2,6,null,1,0]
[3,5,8,null,2,27.777777777777779]
[2,4,6,null,3,55.555555555555557]
[3,6,9,null,4,83.333333333333329]
[2,6,8,null,5,111.11111111111111]
[4,1,5,null,6,138.88888888888889]
[5,1,6,null,7,166.66666666666666]
[2,2,4,null,8,138.88888888888889]
[5,4,9,null,9,111.11111111111111]
[2,3,5,null,10,83.333333333333329]
[3,3,6,null,11,55.555555555555557]
[1,2,3,null,12,27.777777777777779]
[5,5,10]
[6,3,9]
[4,4,8]
[4,2,6]
[6,2,8]
[1,5,6]
[5,6,11]
[2,2,4]
[2,6,8]
[4,5,9]
[5,5,10]
[2,4,6]
[5,6,11]
[4,6,10]
[6,5,11]
[5,3,8]
[4,2,6]
[6,3,9]
[4,4,8]
[5,2,7]
[4,5,9]
[5,5,10]
[2,3,5]
[5,3,8]
[5,2,7]
[3,5,8]
[6,1,7]
[6,2,8]
[4,4,8]
[{"$f":"ROUND(RAND()*5,0)+1","v":3},4,7]
[5,2,7]
[6,2,8]
[3,6,9]
[2,3,5]
[3,5,8]
[5,5,10]
[5,6,11]
[5,1,6]
[3,6,9]
[5,4,{"$f":"A77+B77","v":9}]
[4,5,9]
[5,4,9]
[5,4,9]
[6,4,10]
[6,4,10]
[3,5,8]
[2,5,7]
[5,5,10]
[4,2,6]
[6,5,11]
[4,5,9]
[4,5,9]
[3,5,8]
[4,3,7]
[2,3,5]
[5,3,8]
[5,3,8]
[3,2,5]
[3,3,6]
[4,3,7]
[5,2,7]
[5,2,7]
[3,4,7]
[4,4,8]
[3,4,7]
[4,3,7]
[1,2,3]
[5,4,9]
[3,2,5]
[6,4,10]
[4,5,9]
[3,5,8]
[3,3,6]
[3,4,7]
[4,3,7]
[1,1,2]
[2,3,5]
[2,3,5]
[2,6,8]
[3,4,7]
[5,3,8]
[3,5,8]
[2,5,7]
[2,2,4]
[3,2,5]
[3,3,6]
[1,5,6]
[6,3,9]
[3,2,5]
[2,5,7]
[3,4,7]
[5,3,8]
[4,4,8]
[{"$f":"ROUND(RAND()*5,0)+1","v":4},5,9]
[4,3,7]
[5,6,11]
[4,1,5]
[5,2,7]
[5,1,6]
[1,5,6]
[1,4,5]
[4,5,9]
[5,4,9]
[3,4,{"$f":"A141+B141","v":7}]
[4,3,7]
[3,3,6]
[5,3,8]
[5,2,7]
[4,5,9]
[4,2,6]
[2,1,3]
[3,6,9]
[3,4,7]
[5,2,7]
[1,3,4]
[4,2,6]
[3,3,6]
[2,3,5]
[1,2,3]
[1,4,5]
[5,4,9]
[5,3,8]
[2,1,3]
[2,3,5]
[4,5,9]
[4,3,7]
[5,1,6]
[4,2,6]
[6,5,11]
[4,1,5]
[3,6,9]
[1,4,5]
[2,4,6]
[2,5,7]
[6,6,12]
[6,4,10]
[2,3,5]
[1,1,2]
[2,4,6]
[5,2,7]
[5,2,7]
[3,6,9]
[3,2,5]
[2,2,4]
[2,2,4]
[4,5,9]
[3,4,7]
[5,3,8]
[5,4,9]
[4,4,8]
[2,1,3]
[5,2,7]
[3,3,6]
[6,5,11]
[6,4,10]
[2,5,7]
[3,1,4]
[{"$f":"ROUND(RAND()*5,0)+1","v":5},4,9]
[4,3,7]
[3,2,5]
[2,2,4]
[1,4,5]
[6,5,11]
[5,4,9]
[4,6,10]
[5,3,8]
[5,2,7]
[2,1,{"$f":"A205+B205","v":3}]
[3,1,4]
[5,3,8]
[5,4,9]
[1,4,5]
[2,2,4]
[3,6,9]
[5,6,11]
[2,2,4]
[4,4,8]
[3,3,6]
[3,2,5]
[5,6,11]
[2,5,7]
[6,4,10]
[3,3,6]
[5,1,6]
[4,2,6]
[2,2,4]
[2,1,3]
[5,3,8]
[4,5,9]
[4,5,9]
[2,2,4]
[2,4,6]
[2,1,3]
[5,4,9]
[6,6,12]
[6,5,11]
[6,3,9]
[6,6,12]
[5,4,9]
[3,3,6]
[4,1,5]
[5,3,8]
[4,4,8]
[4,2,6]
[2,1,3]
[2,4,6]
[2,3,5]
[2,4,6]
[5,2,7]
[2,3,5]
[2,3,5]
[4,4,8]
[5,6,11]
[3,3,6]
[2,5,7]
[1,3,4]
[4,4,8]
[3,2,5]
[6,3,9]
[6,5,11]
[4,3,7]
[{"$f":"ROUND(RAND()*5,0)+1","v":3},3,6]
[3,1,4]
[5,4,9]
[3,3,6]
[4,5,9]
[1,5,6]
[6,2,8]
[4,6,10]
[3,4,7]
[2,3,5]
[2,2,{"$f":"A269+B269","v":4}]
[3,1,4]
[3,2,5]
[4,5,9]
[2,4,6]
[4,4,8]
[4,6,10]
[3,1,4]
[2,6,8]
[6,5,11]
[2,2,4]
[6,3,9]
[3,2,5]
[3,5,8]
[1,6,7]
[2,6,8]
[1,6,7]
[2,6,8]
[2,5,7]
[2,6,8]
[2,5,7]
[6,2,8]
[3,5,8]
[2,3,5]
[4,4,8]
[5,1,6]
[5,4,9]
[3,4,7]
[3,4,7]
[3,1,4]
[2,3,5]
[2,4,6]
[4,1,5]
[2,2,4]
[4,1,5]
[2,4,6]
[4,2,6]
[5,2,7]
[4,1,5]
[6,5,11]
[4,6,10]
[6,4,10]
[6,5,11]
[5,1,6]
[5,6,11]
[4,2,6]
[6,2,8]
[5,4,9]
[1,5,6]
[5,3,8]
[3,1,4]
[2,4,6]
[5,2,7]
[3,5,8]
[{"$f":"ROUND(RAND()*5,0)+1","v":5},3,8]
[5,5,10]
[3,5,8]
[4,3,7]
[4,6,10]
[4,4,8]
[6,2,8]
[2,5,7]
[4,4,8]
[2,5,7]
[3,2,{"$f":"A333+B333","v":5}]
[5,4,9]
[3,2,5]
[4,5,9]
[4,1,5]
[1,2,3]
[5,3,8]
[5,4,9]
[2,3,5]
[1,5,6]
[4,6,10]
[4,5,9]
[6,2,8]
[2,5,7]
[6,3,9]
[5,2,7]
[5,5,10]
[2,5,7]
[2,4,6]
[4,6,10]
[3,5,8]
[2,5,7]
[3,4,7]
[3,1,4]
[4,2,6]
[5,5,10]
[4,3,7]
[6,1,7]
[2,2,4]
[4,3,7]
[2,1,3]
[3,3,6]
[5,5,10]
[2,4,6]
[3,6,9]
[2,2,4]
[6,5,11]
[4,5,9]
[3,3,6]
[2,4,6]
[1,6,7]
[2,2,4]
[3,5,8]
[3,4,7]
[5,4,9]
[6,5,11]
[5,5,10]
[5,4,9]
[4,3,7]
[4,3,7]
[5,4,9]
[3,6,9]
[5,4,9]
[4,2,6]
[{"$f":"ROUND(RAND()*5,0)+1","v":3},6,9]
[4,2,6]
[2,6,8]
[5,3,8]
[4,3,7]
[4,6,10]
[5,3,8]
[5,5,10]
[6,4,10]
[2,3,5]
[2,2,{"$f":"A397+B397","v":4}]
[4,6,10]
[3,4,7]
[1,3,4]
[1,3,4]
[4,6,10]
[2,3,5]
[6,3,9]
[2,3,5]
[2,4,6]
[3,4,7]
[6,3,9]
[1,4,5]
[2,6,8]
[3,3,6]
[4,5,9]
[6,6,12]
[3,3,6]
[6,5,11]
[2,5,7]
[5,5,10]
[3,4,7]
[5,5,10]
[6,5,11]
[2,4,6]
[3,2,5]
[2,3,5]
[4,2,6]
[3,5,8]
[4,2,6]
[2,6,8]
[3,4,7]
[4,3,7]
[2,2,4]
[3,2,5]
[6,5,11]
[6,1,7]
[2,3,5]
[4,3,7]
[1,2,3]
[4,2,6]
[4,3,7]
[3,2,5]
[4,4,8]
[4,3,7]
[3,5,8]
[3,2,5]
[4,4,8]
[1,5,6]
[5,3,8]
[6,4,10]
[4,5,9]
[2,3,5]
[5,5,10]
[{"$f":"ROUND(RAND()*5,0)+1","v":3},5,8]
[3,5,8]
[3,4,7]
[4,1,5]
[5,1,6]
[4,2,6]
[3,5,8]
[6,1,7]
[5,6,11]
[3,3,6]
[4,1,{"$f":"A461+B461","v":5}]
[3,4,7]
[2,5,7]
[3,5,8]
[5,4,9]
[5,5,10]
[2,5,7]
[3,4,7]
[2,3,5]
[4,3,7]
[5,5,10]
[3,5,8]
[5,5,10]
[3,5,8]
[2,4,6]
[6,6,12]
[4,2,6]
[4,6,10]
[4,5,9]
[4,1,5]
[5,3,8]
[1,4,5]
[5,5,10]
[3,3,6]
[6,5,11]
[2,4,6]
[3,2,5]
[5,1,6]
[6,5,11]
[4,3,7]
[4,4,8]
[3,3,6]
[5,4,9]
[4,4,8]
[5,3,8]
[3,1,4]
[4,3,7]
[5,3,8]
[5,5,10]
[5,4,9]
[6,4,10]
[4,3,7]
[2,3,5]
[5,2,7]
[5,1,6]
[3,5,8]
[1,6,7]
[6,4,10]
[2,2,4]
[3,2,5]
[5,3,8]
[6,2,8]
[1,1,2]
[4,2,6]
[{"$f":"ROUND(RAND()*5,0)+1","v":6},4,10]
[2,1,3]
[5,5,10]
[2,3,5]
[2,2,4]
[3,2,5]
[5,3,8]
[4,3,7]
[3,3,6]
[5,2,7]
[4,3,{"$f":"A525+B525","v":7}]
[4,5,9]
[4,6,10]
[2,2,4]
[6,3,9]
[3,6,9]
[5,2,7]
[6,4,10]
[6,3,9]
[3,1,4]
[2,3,5]
[2,4,6]
[4,5,9]
[2,6,8]
[2,2,4]
[5,4,9]
[2,4,6]
[6,4,10]
[5,3,8]
[2,4,6]
[5,4,9]
[3,5,8]
[2,2,4]
[2,2,4]
[6,5,11]
[5,4,9]
[5,1,6]
[4,5,9]
[3,6,9]
[4,1,5]
[2,4,6]
[2,4,6]
[1,1,2]
[5,3,8]
[6,5,11]
[3,6,9]
[2,1,3]
[3,2,5]
[3,3,6]
[4,3,7]
[1,2,3]
[4,4,8]
[4,3,7]
[1,2,3]
[5,5,10]
[6,6,12]
[6,5,11]
[4,4,8]
[5,3,8]
[1,2,3]
[5,2,7]
[3,2,5]
[1,6,7]
[3,5,8]
[{"$f":"ROUND(RAND()*5,0)+1","v":2},2,4]
[2,3,5]
[4,3,7]
[4,4,8]
[3,2,5]
[2,4,6]
[3,4,7]
[3,3,6]
[1,4,5]
[4,5,9]
[5,6,{"$f":"A589+B589","v":11}]
[5,5,10]
[4,2,6]
[4,4,8]
[1,6,7]
[1,4,5]
[6,5,11]
[5,6,11]
[5,2,7]
[6,2,8]
[1,2,3]
[5,5,10]
[4,3,7]
[4,2,6]
[4,4,8]
[2,4,6]
[2,5,7]
[6,3,9]
[5,3,8]
[5,4,9]
[4,3,7]
[2,4,6]
[5,1,6]
[4,2,6]
[1,3,4]
[2,1,3]
[3,2,5]
[4,3,7]
[2,5,7]
[3,3,6]
[2,1,3]
[3,5,8]
[3,2,5]
[2,1,3]
[6,1,7]
[6,4,10]
[3,3,6]
[4,4,8]
[4,2,6]
[6,1,7]
[1,1,2]
[3,4,7]
[2,3,5]
[2,3,5]
[5,5,10]
[3,5,8]
[1,4,5]
[2,1,3]
[4,5,9]
[6,3,9]
[1,6,7]
[3,4,7]
[2,2,4]
[4,4,8]
[{"$f":"ROUND(RAND()*5,0)+1","v":6},1,7]
[5,4,9]
[5,3,8]
[3,5,8]
[4,2,6]
[3,1,4]
[5,2,7]
[3,3,6]
[5,5,10]
[2,6,8]
[2,5,{"$f":"A653+B653","v":7}]
[2,3,5]
[2,2,4]
[5,4,9]
[1,5,6]
[4,2,6]
[4,4,8]
[6,1,7]
[1,1,2]
[4,2,6]
[3,5,8]
[2,3,5]
[4,5,9]
[6,6,12]
[2,6,8]
[3,5,8]
[3,4,7]
[5,4,9]
[4,6,10]
[2,1,3]
[2,5,7]
[4,3,7]
[2,2,4]
[4,4,8]
[1,4,5]
[6,1,7]
[2,3,5]
[3,6,9]
[3,5,8]
[4,1,5]
[1,3,4]
[4,4,8]
[1,2,3]
[6,4,10]
[1,6,7]
[2,6,8]
[2,2,4]
[2,3,5]
[5,3,8]
[4,5,9]
[6,4,10]
[2,2,4]
[1,4,5]
[6,1,7]
[2,5,7]
[4,1,5]
[2,2,4]
[6,1,7]
[3,3,6]
[3,3,6]
[6,5,11]
[5,1,6]
[4,4,8]
[5,6,11]
[{"$f":"ROUND(RAND()*5,0)+1","v":6},4,10]
[3,1,4]
[4,1,5]
[1,3,4]
[3,3,6]
[3,5,8]
[2,1,3]
[3,5,8]
[4,2,6]
[5,1,6]
[3,5,{"$f":"A717+B717","v":8}]
[5,4,9]
[3,5,8]
[5,3,8]
[6,5,11]
[5,2,7]
[6,4,10]
[2,5,7]
[1,1,2]
[5,4,9]
[4,1,5]
[6,1,7]
[3,2,5]
[4,4,8]
[4,5,9]
[2,4,6]
[6,1,7]
[1,4,5]
[3,3,6]
[4,3,7]
[4,3,7]
[2,4,6]
[6,3,9]
[2,2,4]
[4,6,10]
[6,6,12]
[4,2,6]
[5,5,10]
[4,1,5]
[4,2,6]
[3,4,7]
[3,3,6]
[5,3,8]
[3,4,7]
[2,4,6]
[3,1,4]
[1,3,4]
[2,6,8]
[2,1,3]
[3,2,5]
[1,5,6]
[2,6,8]
[5,3,8]
[1,6,7]
[6,3,9]
[4,3,7]
[4,2,6]
[3,1,4]
[5,2,7]
[5,3,8]
[2,3,5]
[4,1,5]
[2,4,6]
[5,4,9]
[{"$f":"ROUND(RAND()*5,0)+1","v":3},4,7]
[4,1,5]
[4,2,6]
[3,2,5]
[6,4,10]
[2,5,7]
[1,3,4]
[5,5,10]
[6,5,11]
[4,6,10]
[6,2,{"$f":"A781+B781","v":8}]
[3,5,8]
[1,2,3]
[1,2,3]
[2,3,5]
[5,1,6]
[3,4,7]
[2,6,8]
[4,2,6]
[3,1,4]
[4,5,9]
[1,5,6]
[4,1,5]
[4,1,5]
[3,1,4]
[4,5,9]
[4,3,7]
[3,4,7]
[6,5,11]
[3,5,8]
[3,4,7]
[1,6,7]
[4,1,5]
[1,5,6]
[3,5,8]
[4,2,6]
[3,3,6]
[5,1,6]
[2,5,7]
[2,2,4]
[3,2,5]
[5,6,11]
[5,2,7]
[6,2,8]
[4,2,6]
[1,6,7]
[2,2,4]
[4,4,8]
[5,3,8]
[2,6,8]
[1,2,3]
[4,4,8]
[2,3,5]
[1,4,5]
[3,3,6]
[3,4,7]
[4,3,7]
[2,3,5]
[5,6,11]
[2,4,6]
[4,2,6]
[1,4,5]
[5,2,7]
[1,4,5]
[{"$f":"ROUND(RAND()*5,0)+1","v":6},5,11]
[4,5,9]
[5,3,8]
[3,2,5]
[3,1,4]
[6,4,10]
[2,2,4]
[2,5,7]
[3,2,5]
[5,5,10]
[4,3,{"$f":"A845+B845","v":7}]
[3,1,4]
[5,2,7]
[4,4,8]
[4,4,8]
[5,4,9]
[2,3,5]
[5,5,10]
[5,4,9]
[1,5,6]
[3,4,7]
[4,2,6]
[4,4,8]
[2,4,6]
[4,6,10]
[5,6,11]
[4,6,10]
[2,6,8]
[3,5,8]
[5,5,10]
[3,4,7]
[3,2,5]
[1,5,6]
[4,2,6]
[2,2,4]
[1,4,5]
[4,5,9]
[5,6,11]
[4,3,7]
[1,3,4]
[1,3,4]
[6,4,10]
[6,4,10]
[2,4,6]
[4,5,9]
[1,2,3]
[3,5,8]
[6,6,12]
[5,4,9]
[3,4,7]
[2,2,4]
[6,4,10]
[3,5,8]
[5,4,9]
[5,4,9]
[5,2,7]
[2,6,8]
[4,4,8]
[3,5,8]
[3,3,6]
[6,4,10]
[4,4,8]
[3,5,8]
[2,3,5]
[{"$f":"ROUND(RAND()*5,0)+1","v":3},5,8]
[3,3,6]
[3,6,9]
[3,3,6]
[2,3,5]
[6,5,11]
[5,6,11]
[2,5,7]
[5,3,8]
[5,4,9]
[6,2,{"$f":"A909+B909","v":8}]
[4,2,6]
[2,5,7]
[5,4,9]
[5,3,8]
[4,5,9]
[2,3,5]
[4,3,7]
[1,5,6]
[3,3,6]
[4,4,8]
[6,3,9]
[4,2,6]
[1,2,3]
[4,5,9]
[5,5,10]
[3,2,5]
[3,5,8]
[1,3,4]
[3,2,5]
[4,5,9]
[4,6,10]
[2,6,8]
[5,5,10]
[2,3,5]
[4,3,7]
[5,3,8]
[2,4,6]
[4,3,7]
[3,2,5]
[6,2,8]
[2,6,8]
[6,2,8]
[3,4,7]
[4,6,10]
[3,2,5]
[4,5,9]
[5,3,8]
[5,3,8]
[5,3,8]
[3,6,9]
[5,4,9]
[6,2,8]
[5,2,7]
[3,5,8]
[3,3,6]
[4,1,5]
[5,2,7]
[4,3,7]
[1,1,2]
[5,1,6]
[2,2,4]
[3,4,7]
[5,3,8]
[{"$f":"ROUND(RAND()*5,0)+1","v":3},4,7]
[2,2,4]
[4,4,8]
[2,4,6]
[1,6,7]
[4,4,8]
[3,1,4]
[3,4,7]
[4,6,10]
[5,4,9]
[6,6,{"$f":"A973+B973","v":12}]
[4,3,7]
[6,3,9]
[2,4,6]
[5,4,9]
[2,3,5]
[3,4,7]
[4,4,8]
[6,3,9]
[5,5,10]
[2,5,7]
[6,2,8]
[2,3,5]
[6,6,12]
[2,4,6]
[5,4,9]
[5,1,6]
[2,3,5]
[1,3,4]
[3,3,6]
[4,3,7]
[4,2,6]
[3,1,4]
[2,6,8]
[4,3,7]
[3,5,8]
[4,4,8]
[2,5,7]
[5,6,11]